Cogmind - Beta 15 @@@ ROGUE MODE // 2025.06.04 @ 16:37:17 Player: Wyvric Result: Destroyed by Architect with Modified Sigix Sheargun Performance ------------- Evolutions (9) 4500 Regions Visited (34) 6800 Robots Destroyed (879) 4395 Value Destroyed (57026) 57026 Prototype IDs (409) 8180 Alien Tech Used (7) 1400 Bonus (79464) 79464 TOTAL SCORE: 161765 Bonus ------- Triggered High Security 1500 High Alert Combat Kills 25938 Follower Combat Kills 1635 Met Data Miner 300 Used Data Conduit 3000 Met Imprinter 300 Destroyed Z-Imprinter 1000 Triggered Deep Caves Wall 500 Exposed GOLEM Chamber 500 Met Zhirov 300 Met Warlord at Base 500 MAIN.C Attacked Warlord 500 Warlord Defense Kills 2268 Met Warlord at Research 2000 Scanned by Researcher 500 Pursued by Intercept 3500 Destroyed Superfortress 15000 Destroyed MAIN.C Guards 500 Met MAIN.C 5000 Destroyed MAIN.C Shell 5000 Destroyed MAIN.C 10000 Met Architect 300 Destroyed A8 300 Destroyed A6 400 Friendly Fire -1277 Cogmind --------- Core Integrity 0/1600 Matter 94/300 Energy 98/100 System Corruption 33% Temperature Cool (0) Movement Core (50) Location -1/Access_0 Parts ------- > --- POWER (3) -------- (None) > --- PROPULSION (4) --- (None) > --- UTILITY (12) ----- (None) > --- WEAPON (6) ------- (None) > --- INVENTORY (5) ---- Reinforced Quantum Reactor Experimental Matter Compressor (341) Concept NT7 Matterbank (0) Advanced Weapon Cycler Concept Helical Railcannon Peak State ------------ > --- POWER ------------ Hybrid Graviton Reactor Hybrid Graviton Reactor Hybrid Graviton Reactor > --- PROPULSION ------- Experimental Heavy Siege Treads Experimental Heavy Siege Treads > --- UTILITY ---------- Concept Thermoelectric Network Concept Thermoelectric Network Concept Antigrav Storage Unit Spectral Analyzer Assembled Combat Suite Concept Hypertargeting System Experimental Core Analyzer Experimental Armor Integrity Analyzer Experimental Kinecellerator Advanced Phase Shifter Experimental Force Field Concept Matter Streamer > --- WEAPON ----------- Concept XC Strikerail Concept XC Strikerail Concept XC Strikerail Concept XC Strikerail Concept XC Strikerail Concept XC Strikerail > --- INVENTORY -------- Reinforced Quantum Reactor Armored Heavy Treads Concept NT7 Matterbank Concept NT7 Matterbank Experimental Targeting Computer Experimental Kinecellerator Advanced Weapon Cycler Experimental Shock Absorption System Advanced Force Field Concept Antimissile System Transdimensional Reconstructor Vortex Shotgun Vortex Shotgun Linked Autogun Linked Autogun Linked Autogun Concept Miniperforator Concept Miniperforator Concept Helical Railcannon Concept Helical Railcannon Concept Helical Railcannon [Rating: 310] Favorites ----------- Power Hybrid Graviton Reactor Engine Improved Deuterium Engine Power Core Neutrino Core Reactor Hybrid Graviton Reactor Propulsion Assembled Alloy Leg Treads Experimental Heavy Siege Treads Leg Assembled Alloy Leg Wheel Compact Wheel Hover Unit Zionite Glidesys II Utility Huge Storage Unit Device Assembled Combat Suite Storage Huge Storage Unit Processor Experimental Armor Integrity Analyzer Hackware Makeshift System Shield Protection Assembled Alloy Armor Weapon Assembled Focal Cannon Energy Gun Heavy Riot Gun Energy Cannon Assembled Focal Cannon Ballistic Gun Concept XC Strikerail Ballistic Cannon Enhanced Hardcell Cannon Launcher Improved Proton Missile Launcher Special Weapon Improved Plasma Cutter Impact Weapon Makeshift Hammer Slashing Weapon Greatsword Piercing Weapon Vortex Lance Special Melee Weapon Advanced Datajack Build | -11 -10 -10 -10 -9 -8 -7 -7 -7 -7 -6 -6 -6 -6 -6 -6 -5 -5 -5 -5 -5 -4 -4 -4 -4 -4 -3 -3 -3 -2 -2 -2 -1 -1 -1 ------- Run | Yrd Mat Min Exi Min Mat Fac Low Low Dat Pro Fac Low Low Zio Dee Pro Fac Upp Upp Zhi Pro Fac Upp Upp War Pro Res Qua Res Tes Frg Acc Com Ac0 Slots Evolved 18 | . . . . . 4 2 . . . . 2 . . . . . 2 . . . . 2 . . . . 2 . 2 . . 2 . . Power 2 | . . . . . . 1 . . . . . . . . . . . . . . . . . . . . . . 1 . . . . . Propulsion 2 | . . . . . . . . . . . . . . . . . . . . . . 2 . . . . . . . . . . . . Utility 10 | . . . . . 4 1 . . . . . . . . . . 2 . . . . . . . . . . . 1 . . 2 . . Weapon 4 | . . . . . . . . . . . 2 . . . . . . . . . . . . . . . 2 . . . . . . . Parts Attached 432 | 7 11 6 . 3 34 31 5 . 7 15 3 7 6 9 36 3 9 4 . 2 4 8 6 1 7 1 11 9 6 19 78 5 68 11 Power 49 | 1 1 2 . 1 5 5 1 . 2 3 . . 1 1 5 . . . . . . . . . . . 2 . 1 1 16 . 1 . Engine 16 | 1 1 1 . 1 2 5 1 . 1 . . . . . 3 . . . . . . . . . . . . . . . . . . . Core 8 | . . 1 . . 3 . . . . 1 . . 1 . . . . . . . . . . . . . . . . . 2 . . . Reactor 25 | . . . . . . . . . 1 2 . . . 1 2 . . . . . . . . . . . 2 . 1 1 14 . 1 . Propulsion 49 | 2 4 1 . . 7 3 2 . 1 2 . 2 1 1 4 . . . . . . 2 . . . . 2 . . 2 3 . 8 2 Treads 24 | 2 2 1 . . 7 . 1 . 1 . . . . 1 . . . . . . . . . . . . . . . . 3 . 4 2 Leg 13 | . . . . . . . . . . 2 . . . . 1 . . . . . . 2 . . . . 2 . . 2 . . 4 . Wheel 10 | . 2 . . . . 3 1 . . . . 2 1 . 1 . . . . . . . . . . . . . . . . . . . Hover 2 | . . . . . . . . . . . . . . . 2 . . . . . . . . . . . . . . . . . . . Flight . | . . . . . . . . . . . . . . . . . . . . . . . . . . . . . . . . . . . Utility 218 | 2 4 1 . 2 15 15 1 . 2 4 1 2 2 4 22 3 8 2 . 1 3 5 4 1 3 1 5 5 4 7 43 5 33 8 Device 112 | 1 1 1 . . 5 6 1 . . 2 . 1 2 1 9 1 4 2 . 1 1 3 2 1 1 . 3 5 2 5 29 3 16 3 Storage 11 | 1 2 . . 2 . 1 . . . 1 . . . . 2 . . . . . . . . . . . . . . . 1 . 1 . Processor 29 | . . . . . 5 2 . . . . . . . 1 . 2 2 . . . 1 1 1 . 1 1 2 . 1 . 3 . 4 2 Hackware 2 | . . . . . . . . . . . . . . . . . . . . . . . 1 . . . . . . . . . 1 . Protection 64 | . 1 . . . 5 6 . . 2 1 1 1 . 2 11 . 2 . . . 1 1 . . 1 . . . 1 2 10 2 11 3 Artifact . | . . . . . . . . . . . . . . . . . . . . . . . . . . . . . . . . . . . Weapon 116 | 2 2 2 . . 7 8 1 . 2 6 2 3 2 3 5 . 1 2 . 1 1 1 2 . 4 . 2 4 1 9 16 . 26 1 Energy Gun 13 | . 1 . . . 1 2 . . . . . . 1 . 2 . . . . . . . . . 1 . . 1 . 1 . . 3 . Energy Cannon 18 | . . . . . . . . . 1 5 1 . . 1 1 . . 1 . . 1 1 1 . . . 1 1 . 2 . . 1 . Ballistic Gun 37 | 2 1 2 . . 6 1 . . . . 1 1 . . 2 . . . . 1 . . 1 . . . 1 2 1 4 7 . 4 . Ballistic Cannon 17 | . . . . . . . . . . . . . 1 . . . . . . . . . . . . . . . . 1 7 . 8 . Launcher 18 | . . . . . . 2 . . 1 1 . 2 . . . . 1 1 . . . . . . 1 . . . . 1 1 . 7 . Special Weapon 3 | . . . . . . 1 . . . . . . . . . . . . . . . . . . 1 . . . . . . . . 1 Impact Weapon 2 | . . . . . . 1 . . . . . . . 1 . . . . . . . . . . . . . . . . . . . . Slashing Weapon 2 | . . . . . . 1 1 . . . . . . . . . . . . . . . . . . . . . . . . . . . Piercing Weapon 5 | . . . . . . . . . . . . . . 1 . . . . . . . . . . 1 . . . . . 1 . 2 . Special Melee Weapon 1 | . . . . . . . . . . . . . . . . . . . . . . . . . . . . . . . . . 1 . Unidentified Prototypes 44 | . . . . . 1 . . . . . . . 1 . 11 . 1 . . 2 . . . . 3 . . . 3 8 9 . 4 1 Corrupted Parts 13 | . . . . . . . . . 2 10 . . . . . . . . . . . . . . 1 . . . . . . . . . System Corruption 90 | . . . . . . . . . 11 76 . . . . . . . . . . . . . . 3 . . . . . . . . . Parts Lost 91 | . 1 3 . . 9 4 1 . 6 2 . . 4 . 9 2 4 . . . 1 . 1 . 1 . 1 . . 3 14 . 3 22 Power 15 | . 1 . . . 1 1 1 . 2 1 . . 1 . 2 . . . . . . . . . . . . . . . 4 . . 1 Propulsion 11 | . . 1 . . 2 1 . . 1 . . . 1 . 1 . . . . . . . . . . . . . . . . . . 4 Utility 44 | . . 1 . . 6 2 . . 1 . . . 1 . 6 2 4 . . . 1 . . . 1 . . . . 3 6 . 3 7 Weapon 21 | . . 1 . . . . . . 2 1 . . 1 . . . . . . . . . 1 . . . 1 . . . 4 . . 10 Highest Loss Streak 10 | . 1 2 . . 3 2 1 . 6 1 . . 3 . 4 1 3 . . . 1 . 1 . 1 . 1 . . 2 4 . 1 10 To Critical Strikes 1 | . . . . . . . . . . 1 . . . . . . . . . . . . . . . . . . . . . . . . Average Backups 19 | 4 13 14 13 15 14 18 21 21 21 21 21 20 20 20 20 19 19 17 17 17 17 18 19 19 19 18 19 20 20 19 21 23 21 18 Power . | 1 . . . . . . . 1 1 1 . . . 1 1 1 1 . 1 . . . . . . 1 1 . . . . . 1 1 Propulsion 1 | 2 7 6 6 6 5 2 4 4 3 4 3 3 3 2 2 1 . . . . . 2 2 2 2 2 1 1 . . . . . 1 Utility 9 | . 1 2 3 2 3 6 7 6 6 6 9 8 9 9 10 11 13 12 12 12 11 11 11 11 10 7 9 8 8 7 9 8 7 8 Weapon 6 | . 4 4 4 5 4 8 9 9 9 8 8 8 7 7 6 5 3 2 3 3 3 3 3 3 4 5 5 6 6 7 9 12 11 5 Tool/Special . | . . . . . . . . . . . . . . . . . . . . . . . . . . . . . . . . . . . Unused Backups 143 | . 9 . 2 5 3 9 2 . 1 1 3 . 3 2 13 1 4 . . 1 1 2 1 1 5 . 6 3 4 5 24 2 23 7 Power 14 | . 1 . . . 1 . . . . . . . . . 1 . . . . . . . . . . . . . . . . . 10 1 Propulsion 16 | . 5 . . . . . . . . . . . . 1 1 . . . . . . . . . . . . . 1 2 2 1 3 . Utility 80 | . . . . 3 . 1 1 . 1 1 3 . 3 1 7 1 3 . . 1 1 2 1 1 4 . 6 3 3 1 18 1 7 6 Weapon 33 | . 3 . 2 2 2 8 1 . . . . . . . 4 . 1 . . . . . . . 1 . . . . 2 4 . 3 . Tool/Special . | . . . . . . . . . . . . . . . . . . . . . . . . . . . . . . . . . . . Average Slot Usage (%) 84 | . 98 99 100 100 97 95 83 84 81 83 85 85 78 80 94 85 87 76 75 75 76 86 88 88 86 88 82 77 77 74 83 75 83 77 Engine 1 | . 12 11 . 3 3 12 14 15 10 7 2 . . . 3 . . . . . . . . . . . . . . . . . . . Reactor 6 | . . . . . . . . . 2 6 9 13 6 11 7 6 5 5 5 5 4 5 5 5 5 5 4 4 7 8 12 12 12 11 Treads 4 | . 27 27 28 28 17 . . . . . . . . 1 4 . . . . . . . . . . . . . . . 4 8 7 7 Leg 6 | . . . . . . . . . . . . . . . 1 12 11 11 10 11 11 20 21 21 21 21 19 19 17 11 3 . . . Wheel 3 | . . . . . . 14 14 15 14 14 13 13 12 11 6 . . . . . . . . . . . . . . . . . . . Device 18 | . 11 13 14 14 12 9 7 7 7 7 6 6 12 14 20 14 22 16 17 17 15 17 20 21 20 19 14 25 28 26 26 30 25 24 Storage 8 | . 14 14 14 14 9 7 7 7 7 7 6 6 6 6 10 13 11 11 11 11 10 10 10 10 10 10 8 4 4 4 4 4 4 3 Processor 6 | . . . . . 20 27 15 15 15 15 11 6 2 1 1 5 5 . . . . 2 4 . 1 5 9 11 10 8 8 8 9 10 Protection 5 | . 2 . . . 9 6 6 7 7 6 7 12 2 5 9 6 5 5 5 5 6 8 5 9 9 5 4 . . 1 3 1 4 4 Energy Cannon 9 | . . . . . . . . . 1 . 8 12 12 13 18 19 16 18 16 16 21 21 20 20 13 14 11 1 . . 1 . . . Ballistic Gun 6 | . 16 27 28 28 17 8 14 13 4 14 16 13 2 . . . . . . . . . . . . . . 6 7 11 11 11 8 4 Ballistic Cannon 2 | . . . . . . . . . . . . . 5 5 . . . . . . . . . . . . . . . . 5 . 8 9 Launcher 1 | . . . . . . . . . 2 . . . . . 1 5 3 3 5 5 . . . . . . 2 . . . . . 1 . Peak Build Rating 310 | 7 13 15 16 18 45 67 69 68 76 93 93 94 103 104 140 139 157 157 152 156 161 176 174 173 180 188 199 200 220 244 289 289 310 271 Average Rating 156 | 4 9 13 13 16 37 50 66 67 68 75 88 92 97 92 94 132 148 152 151 153 154 171 168 171 173 183 191 191 217 225 256 279 266 241 On Entrance 123 | . 7 11 15 16 16 40 67 67 68 76 83 91 93 103 87 138 139 149 152 152 156 153 174 169 149 180 177 182 197 218 221 264 273 255 Naked Turns 13 | . . . . . . . . . . . . . . . . . . . . . . . . . . . . . . . . . . 13 Heaviest Build 220 | 14 32 32 32 52 81 137 138 135 133 132 153 156 154 155 185 185 193 192 187 187 207 220 208 195 191 201 206 175 170 198 181 141 187 172 Greatest Support 200 | 40 40 40 40 40 40 26 26 28 28 28 28 32 32 48 60 60 80 60 60 60 80 124 124 124 124 124 124 124 124 132 200 200 200 155 Greatest Overweight (x) 9 | . 1 1 . 1 4 9 8 5 4 4 5 5 9 4 9 3 3 6 3 3 3 1 1 1 1 1 1 1 1 1 1 . 6 1 Average Overweight (x) 2 | . . . . . 1 3 4 4 3 3 4 4 4 3 4 2 2 3 3 3 2 1 1 1 1 1 1 1 1 1 . . . . Largest Inventory Capacity 25 | 8 15 15 15 20 20 25 25 25 25 25 25 25 25 25 25 25 25 25 25 25 25 25 25 25 25 25 25 25 25 25 25 25 25 25 Average Capacity 24 | 7 14 15 15 18 20 24 25 25 25 25 25 25 25 25 25 25 25 25 25 25 24 25 25 25 25 25 25 25 25 25 25 25 25 23 Most Carried 25 | 7 15 15 15 20 20 25 25 25 25 25 25 25 25 25 25 25 25 25 25 25 25 25 25 25 25 25 25 25 25 25 25 25 25 25 Average Carried 23 | 4 13 14 14 18 19 23 24 24 24 24 24 24 24 24 23 24 24 24 24 24 24 24 24 24 24 24 24 24 24 24 24 24 24 20 Final Capacity 25 | 8 15 15 15 20 20 25 25 25 25 25 25 25 25 25 25 25 25 25 25 25 25 25 25 25 25 25 25 25 25 25 25 25 25 5 Final Carried 25 | 6 15 14 15 20 19 25 25 25 25 25 25 25 25 25 25 25 25 25 25 25 25 25 25 25 25 25 25 25 25 25 25 25 25 5 Class Distribution -------------------- 30% | Golem 20% | Scavenger-Executioner 13% | Scavenger-Skirmisher 5% | Skirmisher 5% | Scavenger-Mutant 4% | Mutant 4% | Executioner 3% | Scavenger-Gunner 3% | Scavenger-Tank Dominant Class ---------------- Mutant | -10/Materials Mutant | -10/Mines Commander-Mutant | -10/Exiles Commander-Mutant | -9/Mines Scavenger-Mutant | -8/Materials Mutant | -7/Factory Skirmisher | -7/Lower Caves Skirmisher | -7/Lower Caves Assassin | -7/Data Miner Scavenger-Skirmisher | -6/Proximity Caves Scavenger-Skirmisher | -6/Factory Scavenger-Skirmisher | -6/Lower Caves Scavenger-Skirmisher | -6/Lower Caves Scavenger-Skirmisher | -6/Zion Scavenger-Tank | -6/Deep Caves Golem | -5/Proximity Caves Golem | -5/Factory Golem | -5/Upper Caves Golem | -5/Upper Caves Golem | -5/Zhirov Golem | -4/Proximity Caves Tank | -4/Factory Skirmisher | -4/Upper Caves Golem | -4/Upper Caves Golem | -4/Warlord Golem | -3/Proximity Caves Golem | -3/Research Executioner | -3/Quarantine Executioner | -2/Research Infiltrator-Executioner | -2/Testing Scavenger-Executioner | -2/Protoforge Scavenger-Executioner | -1/Access Scavenger-Executioner | -1/Command Scavenger-Executioner | -1/Access_0 Resources | -11 -10 -10 -10 -9 -8 -7 -7 -7 -7 -6 -6 -6 -6 -6 -6 -5 -5 -5 -5 -5 -4 -4 -4 -4 -4 -3 -3 -3 -2 -2 -2 -1 -1 -1 ----------- Run | Yrd Mat Min Exi Min Mat Fac Low Low Dat Pro Fac Low Low Zio Dee Pro Fac Upp Upp Zhi Pro Fac Upp Upp War Pro Res Qua Res Tes Frg Acc Com Ac0 Matter Collected 52485 | 189 424 173 . 74 1033 768 546 30 179 364 226 275 1917 321 1655 58 302 70 . . 120 149 196 113 545 299 1222 2638 635 1670 13394 3381 15372 4147 Remotely 18861 | . . . . . . 161 . . . . . . . . . . . . . . . . . . . . . . . 557 8086 2696 5813 1548 Salvage Created 61160 | 29 537 319 . . 1615 1467 834 196 440 401 271 260 678 . 2674 1005 1918 879 406 . 1166 1745 736 820 693 1129 1281 2919 1260 1360 10832 4216 17692 1382 Parts 2306 | 2 29 28 . . 94 74 28 1 18 18 10 23 36 . 35 31 92 40 21 . 49 79 33 40 29 53 61 133 59 91 438 148 461 52 Haulers Intercepted 9 | . 2 . . . 1 1 . . . . 1 . . . . . . . . . . 1 . . . . 1 1 1 . . . . . Recyclers Shooed 9 | . 4 . . . . . . . . . 2 . . . . . . . . . . 1 . . . . . 1 . . . 1 . . Parts Field Recycled . | . . . . . . . . . . . . . . . . . . . . . . . . . . . . . . . . . . . Retrieved Matter . | . . . . . . . . . . . . . . . . . . . . . . . . . . . . . . . . . . . Parts Self-Destructed 279 | . . . . . . . 9 2 . 7 . 11 11 4 . 12 . 40 21 . 43 . 35 35 . 49 . . . . . . . . Prevented 55 | . . . . . . . 18 4 . 10 . 1 6 . . 9 . . . . 1 . 1 . . 5 . . . . . . . . Kills | -11 -10 -10 -10 -9 -8 -7 -7 -7 -7 -6 -6 -6 -6 -6 -6 -5 -5 -5 -5 -5 -4 -4 -4 -4 -4 -3 -3 -3 -2 -2 -2 -1 -1 -1 ------- Run | Yrd Mat Min Exi Min Mat Fac Low Low Dat Pro Fac Low Low Zio Dee Pro Fac Upp Upp Zhi Pro Fac Upp Upp War Pro Res Qua Res Tes Frg Acc Com Ac0 Combat Hostiles Destroyed 798 | . 14 11 . . 30 16 10 . 4 8 . 2 6 . 55 12 30 14 9 . 19 18 11 11 17 24 15 29 13 21 132 44 201 22 Melee 5 | . . . . . . 5 . . . . . . . . . . . . . . . . . . . . . . . . . . . . Guns 441 | . 14 11 . . 30 7 1 . . . . 2 . . 4 . . . . . . . . . . . 2 29 13 21 81 44 169 13 Cannons 234 | . . . . . . . . . . 3 . . 4 . 5 10 18 14 9 . 19 18 11 11 6 21 10 . . . 38 . 29 8 AOE 78 | . . . . . . 3 6 . . 4 . . 1 . 31 2 8 . . . . . . . 11 2 3 . . . 3 . 3 1 Classes Destroyed 37 | 1 5 . . . 4 4 2 . . . . 1 . . 4 . 2 . . . . . . 2 3 1 . 1 . . 6 . 1 . Worker 31 | . 1 . . . 2 3 . . . . . . . . . . . . . . . 4 . . . . 1 7 . . 3 3 7 . Builder 17 | . . . . . . 2 . . . . 1 . . . . . 1 . . . . 1 . . . . 1 4 . 1 4 2 . . Tunneler 3 | 1 . . . . . 2 . . . . . . . . . . . . . . . . . . . . . . . . . . . . Hauler 9 | . 2 . . . 1 1 . . . . 1 . . . . . . . . . . 1 . . . . 1 1 1 . . . . . Recycler 18 | . . . . . . 5 . . . . 1 . . . . . . . . . . 4 . . . . 2 2 1 . . 1 2 . Carrier 8 | . . . . . . . . . . . . . . . . . . . . . . . . . . . . . . . 1 1 6 . Minesweeper 4 | . . . . . . . 1 . . . . . . . . 1 . 2 . . . . . . . . . . . . . . . . Mechanic 16 | . . . . . 1 1 . . . . . . . . . . . . . . . . . . . . . 1 . . 3 . 10 . Operator 5 | . . . . . 1 . . . . . . . . . . . . . . . . . . . . . 1 . . . 1 . 2 . Drone 9 | . . . . . . . . . . . . . . . . . . . . . . . . . . 2 . . . . 7 . . . Watcher 17 | . 1 . . . . . . . . . . . . . . . 1 . . . . 1 . . . . . . . 2 1 5 6 . Swarmer 83 | . 6 6 . . 4 . 1 . . 3 . . . . . . 4 2 4 . 10 4 3 2 2 12 4 . . 5 8 . 3 . Saboteur 15 | . . . . . . . . . . . . . . . . . . . . . . . . . . . . . . . 1 2 12 . Grunt 228 | . 8 5 . . 15 6 8 . . 2 . . 2 . . 7 15 8 . . 4 . 3 4 10 6 . 20 3 1 22 12 67 . Brawler 29 | . . . . . . . . . . . . . . . . . . . . . . . . . . . . . . . 5 6 18 . Duelist 27 | . . . . . . . 1 . . 1 . . . . . 1 . . . . . . . . . 1 . . . . 9 3 11 . Protector 17 | . . . . . . . . . . . . . . . . . . . . . . . . . 1 . . . . . 4 1 11 . Researcher 9 | . . . . . . . . . . . . . . . . . . . . . . . . . . . . 2 . . 7 . . . Sentry 50 | . . . . . 7 5 . . . . . . 1 . . . 1 1 1 . . 4 1 1 . 1 2 . 4 . 14 . 7 . Demolisher 5 | . . . . . . . . . . . . . . . . . . . . . . . . . 1 . . . 1 . . . 3 . Specialist 11 | . . . . . 4 . . . . . . . . . . . . . . . . . . . 1 . . 3 . . . . 3 . Hunter 65 | . . . . . . 1 . . . 2 . 2 2 . . 2 3 2 1 . 4 2 4 2 . 2 . 2 . 3 9 8 14 . Programmer 78 | . . . . . . 4 . . . . . . 1 . . . 4 . 3 . 1 7 . . 1 . 5 2 4 10 9 8 19 . Heavy 4 | . . . . . . . . . . . . . . . . . 1 . . . . . . . . . . . . . . 1 2 . Q-Series 1 | . . . . . . . . . . . . . . . . . . . . . . . . . . . . . . . 1 . . . Behemoth 6 | . . . . . . . . . . . . . . . . . 1 1 . . . . . 1 . . . . . . . 2 1 . M Guard 2 | . . . . . . . . . . . . . . . . . . . . . . . . . . . . . . . . . 2 . Enhanced Grunt 12 | . . . . . . . . . 4 . . . . . . . . . . . . . . . . . . . . . . . . 8 Enhanced Sentry 2 | . . . . . . . . . . . . . . . . . . . . . . . . . . . . . . . . . . 2 Enhanced Hunter 4 | . . . . . . . . . . . . . . . . . . . . . . . . . . . . . . . . . . 4 Enhanced Programmer 6 | . . . . . . . . . . . . . . . . . . . . . . . . . . . . . . . . . . 6 Hotshot 4 | . . . . . . . . . . . . . . . . . . . . . . . . . . . . . . . 4 . . . Decapitator 10 | . . . . . . . . . . . . . . . . . . . . . . . . . . . . . . . 10 . . . Immortal 7 | . . . . . . . . . . . . . . . . . . . . . . . . . . . . . . . 7 . . . Tracker 12 | . . . . . . . . . . . . . . . . . 1 . . . . 1 . . . . 2 1 . 2 5 . . . Combat Programmer 10 | . . . . . . . . . . . . . . . . . . . . . . . . . . . 2 1 . . 5 . 2 . Investigator 2 | . . . . . . . . . . . . . . . . . . . . . . . . . . . . . . . . . 2 . Striker 17 | . . . . . . . . . . . . . . . . . . . . . . . . . 1 . . . 1 . . 1 14 . Executioner 10 | . . . . . . . . . . . . . . . . . . . . . . . . . . . . . . . . . 10 . Alpha 7 2 | . . . . . . . . . . . . . . . . . . . . . . . . . . . . . . . 2 . . . V-Series 9 | . . . . . . . . . . . . . . . . . . . . . . . . . . . . . . . 9 . . . Z-Light 2 | . . . . . . . . . . . . . . . 2 . . . . . . . . . . . . . . . . . . . Decomposer 1 | . . . . . . . 1 . . . . . . . . . . . . . . . . . . . . . . . . . . . Packrat 3 | . . . . . . . 1 . . . . . 1 . . . . . . . . . 1 . . . . . . . . . . . Samaritan 8 | . . . . . . . . . . . . 2 3 . . . . . . . 3 . . . . . . . . . . . . . Assembler 2 | . . . . . . . . . . . . . . . 2 . . . . . . . . . . . . . . . . . . . Assembled 39 | . . . . . . . . . . . . . . . 39 . . . . . . . . . . . . . . . . . . . Golem 16 | . . . . . . . . . . . . . . . 14 2 . . . . . . . . . . . . . . . . . . Savage 1 | . . . . . . . . . . . . . . . . . . . . . . . . 1 . . . . . . . . . . Mutant 1 | . . . . . . . . . . . . . . . . . . . . . . . . 1 . . . . . . . . . . Best Kill Streak 48 | 1 3 3 . . 7 6 4 . 4 3 2 1 3 . 48 3 6 4 4 . 5 3 3 4 12 4 5 16 3 8 15 27 42 4 Combat Bots Only 46 | . 3 3 . . 6 4 4 . 4 3 . 1 3 . 46 3 6 4 4 . 5 3 3 4 12 4 4 11 3 7 14 23 38 4 Max Kills in Single Turn 10 | 1 1 2 . . 2 2 1 . 2 2 1 2 1 . 10 1 2 2 2 . 2 1 1 1 7 2 3 2 1 2 3 5 4 2 Gunslinging 2 | . . 1 . . . . . . . . . . . . . . . . . . . . . . . . . 1 . 1 1 2 2 . Exploded 10 | . . . . . . 2 1 . . 2 . . 1 . 10 1 2 . . . . . . . 7 2 3 . . . 2 . 2 1 Melee 1 | . . . . . . 1 . . . . . . . . . . . . . . . . . . . . . . . . . . . . Uniques/NPCs Destroyed 7 | . . . . . . . . . . . . . . . 2 . . . . . . . . . . . . . . . 1 . 2 2 Z-Imprinter (-6/Deep Caves) Warbot (-6/Deep Caves) Superfortress (-2/Protoforge) MAIN.C Shell (-1/Command) MAIN.C (-1/Command) A8 (-1/Access_0) A6 (-1/Access_0) Combat | -11 -10 -10 -10 -9 -8 -7 -7 -7 -7 -6 -6 -6 -6 -6 -6 -5 -5 -5 -5 -5 -4 -4 -4 -4 -4 -3 -3 -3 -2 -2 -2 -1 -1 -1 -------- Run | Yrd Mat Min Exi Min Mat Fac Low Low Dat Pro Fac Low Low Zio Dee Pro Fac Upp Upp Zhi Pro Fac Upp Upp War Pro Res Qua Res Tes Frg Acc Com Ac0 Hostile Shots Fired 2990 | . 62 44 . 3 196 190 25 . 23 46 9 24 91 . 90 23 115 23 17 . 69 36 39 38 43 72 101 59 22 139 316 81 463 531 Missed 1037 | . 21 9 . 1 52 65 7 . 9 14 4 6 31 . 30 7 31 10 8 . 25 16 5 16 22 32 27 33 12 63 104 40 152 185 Intercepted 12 | . . . . . . . . . . . . . . . . . . . . . . . . . . . . . . . . . 12 . Hits 1953 | . 41 35 . 2 144 125 18 . 14 32 5 18 60 . 60 16 84 13 9 . 44 20 34 22 21 40 74 26 10 76 212 41 311 346 Melee 45 | . . . . . . . . . . 2 . . 1 . 1 . . . . . . . . . . . . . . . 25 . 3 13 Projectile 1908 | . 41 35 . 2 144 125 18 . 14 30 5 18 59 . 59 16 84 13 9 . 44 20 34 22 21 40 74 26 10 76 187 41 308 333 AOE 17 | . . . . . . 3 . . . . . . . . . . . . . . . . . . 1 . . . . . 5 . 8 . Critical Strikes 132 | . . . . . 12 2 . . . 3 . 1 1 . 1 1 8 1 . . . . 2 . . 1 5 3 2 5 21 2 19 42 Actively Blocked 67 | . . . . . 7 . . . . . . . . . . . . . . . . . . . . . . . . 5 13 . 2 40 Part Disruptions 23 | . . . . . . 2 . . . . . . . . 2 . . . . . . . . 1 . . 1 1 . 2 . 1 11 2 Actively Blocked 2 | . . . . . . 1 . . . . . . . . . . . . . . . . . . . . . . . 1 . . . . Damage Taken 36696 | . 400 397 . 31 2448 1390 250 . 655 564 49 307 792 . 1701 216 1727 204 125 . 717 331 486 256 540 755 1639 481 235 1503 5803 328 4544 7822 Core 3845 | . 30 25 . . 273 197 32 . 100 57 . 38 83 . 199 17 106 . 28 . 135 15 7 37 36 50 197 81 . 84 300 20 287 1411 Absorbed by Shields 8635 | . . . . . . . . . . . . . . . . . . . . . . . . . . . . . . . 459 340 4292 3544 Reduced by Siege Mode 443 | . . . . . . . . . . . . . . . . . . . . . . . . . . . . . . . 18 5 420 . Redirected to Shielding 1720 | . . . . . . 137 . . 153 . . 23 38 . 493 . 353 . . . . . . . . . . . . 124 393 . 6 . Ignored by Resistances 1693 | . . . . . 200 20 23 . . . . . . . 90 41 339 44 26 . . 66 120 76 . . . 57 26 233 . . 332 . Regen/Repaired (Parts) 666 | . . . . . . . . . . . . . . . . . . . . . . . . . . . . . . . . . 648 18 Core Remaining (%) 70 | 100 . . . 78 50 . . . . 44 . . . . . 60 . . . . 73 . . . . 87 . 78 . . 66 . . . Volleys Fired 2043 | 5 61 25 . 4 94 37 24 . 7 16 35 57 50 6 97 37 85 37 30 . 46 54 22 17 18 38 75 86 23 42 304 94 400 117 Largest 6 | 2 2 2 . 2 2 2 2 . 2 2 2 2 3 1 4 4 3 4 3 . 3 3 4 4 3 3 3 2 2 5 6 3 6 6 Hottest 386 | 40 79 79 . 46 83 160 78 . 78 138 180 180 215 90 320 135 75 173 75 . 100 75 165 165 160 160 160 113 90 110 268 90 384 386 Shots Fired 5088 | 10 122 50 . 8 186 70 49 1 12 27 36 93 68 6 230 94 167 113 89 . 122 135 73 67 44 109 125 118 43 123 819 261 1322 296 Gun 3063 | 10 122 50 . 8 186 63 29 1 . 1 5 34 28 . 66 4 . . . . . . . . . . 14 95 43 123 651 254 1111 165 Cannon 1926 | . . . . . . . . . 1 19 31 59 36 6 146 87 157 113 89 . 122 135 73 67 42 108 108 23 . . 168 7 200 129 Launcher 97 | . . . . . . 7 20 . 11 7 . . 4 . 18 3 10 . . . . . . . 2 1 3 . . . . . 11 . Special 2 | . . . . . . . . . . . . . . . . . . . . . . . . . . . . . . . . . . 2 Kinetic 3296 | 10 64 41 . 8 183 57 29 1 . 1 5 34 29 . 14 . . . . . . . . . . . 14 95 43 123 784 261 1239 261 Thermal 1431 | . 58 9 . . . 6 . . . . 31 59 35 6 65 87 157 113 89 . 121 135 73 67 42 108 108 23 . . 35 . 4 . Explosive 17 | . . . . . . . . . . . . . . . . . . . . . . . . . 2 1 3 . . . . . 11 . Electromagnetic 256 | . . . . . 3 7 20 . 12 26 . . 4 . 112 3 10 . . . 1 . . . . . . . . . . . 58 . Entropic 43 | . . . . . . . . . . . . . . . . . . . . . . . . . . . . . . . . . 10 33 Phasic 43 | . . . . . . . . . . . . . . . 39 4 . . . . . . . . . . . . . . . . . . Robot Hit Streak 79 | 7 8 5 . 5 26 38 10 . 9 7 6 13 23 . 59 61 30 21 18 . 10 28 6 17 16 16 33 30 24 18 69 50 79 28 Robot Miss Streak 7 | 1 5 2 . 3 3 5 1 . 1 2 1 4 3 . 6 2 1 2 1 . 3 2 2 2 1 3 2 4 2 5 6 3 4 7 Penetration Max 3 | . . . . . 1 . . . . . 2 1 . . . . . . . . . . . . . . . . . . 2 . 3 1 Secondary Targets 121 | . 1 5 . . 4 . . . . . . . . . 2 . . . . . . . . . . . . 5 1 6 13 17 64 3 Max Gunslinging Chain 2 | . 1 1 . . 1 . . . . . . . . . 1 . . . . . . . . . . . . 1 1 1 1 2 2 1 Shots Hit Robots 3436 | 8 63 36 . 4 149 65 31 4 10 15 6 19 39 . 125 45 92 26 34 . 61 69 32 36 36 64 54 89 36 89 639 218 998 244 Core Hits 2513 | 3 25 17 . . 61 39 24 2 16 12 4 6 15 . 139 26 44 17 9 . 27 36 17 21 42 30 36 110 37 59 643 177 658 161 Critical Kills 139 | . . . . . 3 1 . . . . 2 4 5 . . . . . . . . . . . . . . . . . 45 1 76 2 Critical Parts Destroyed 203 | . 1 . . . 2 . . . . . 3 8 4 . . . . . . . . . . . . . . . . . 80 1 96 8 Critical Strikes 374 | . 5 . . . 5 2 . 1 . . 5 12 9 . 5 . . . . . . . . . . . . . . . 139 2 178 11 Burn 4 | . 4 . . . . . . . . . . . . . . . . . . . . . . . . . . . . . . . . . Destroy 353 | . 1 . . . 5 1 . . . . 5 12 9 . . . . . . . . . . . . . . . . . 139 2 173 6 Blast 2 | . . . . . . . . . . . . . . . . . . . . . . . . . . . . . . . . . 2 . Corrupt 4 | . . . . . . . . . . . . . . . 4 . . . . . . . . . . . . . . . . . . . Sever 2 | . . . . . . 1 . 1 . . . . . . . . . . . . . . . . . . . . . . . . . . Detonate 8 | . . . . . . . . . . . . . . . . . . . . . . . . . . . . . . . . . 3 5 Intensify 1 | . . . . . . . . . . . . . . . 1 . . . . . . . . . . . . . . . . . . . Melee Attacks 82 | . . . . . . 32 1 6 2 . . . . 1 4 . 1 . . . . . . . 1 . 9 9 . . 1 . 15 . Impact 2 | . . . . . . 1 . . . . . . . 1 . . . . . . . . . . . . . . . . . . . . Slashing 40 | . . . . . . 31 1 6 2 . . . . . . . . . . . . . . . . . . . . . . . . . Piercing 19 | . . . . . . . . . . . . . . . 4 . 1 . . . . . . . . . . . . . 1 . 13 . Entropic 19 | . . . . . . . . . . . . . . . . . . . . . . . . . 1 . 9 9 . . . . . . Sneak Attacks 10 | . . . . . . 7 . . 1 . . . . . . . . . . . . . . . 1 . . . . . . . 1 . Combat Hostiles 1 | . . . . . . 1 . . . . . . . . . . . . . . . . . . . . . . . . . . . . Follow-up Attacks . | . . . . . . . . . . . . . . . . . . . . . . . . . . . . . . . . . . . Damage Inflicted 157097 | 80 944 549 . 63 2726 2385 1096 218 558 651 148 179 1001 . 5486 2402 5431 1923 1530 . 2692 3360 1902 1840 4257 3154 3714 6394 2861 3550 24770 11185 46695 13353 Guns 96792 | 80 911 545 . 63 2712 884 280 . . . 72 141 164 . 714 86 . . . . . . . . . . 1067 6314 2861 3550 19058 11158 38899 7233 Cannons 45362 | . . . . . . . . . 18 456 38 38 652 . 2559 2169 4434 1923 1530 . 2692 3240 1902 1840 1790 3007 2181 46 . . 3836 . 5649 5362 Explosions 12411 | . . . . . . 478 816 . 456 195 38 . 185 . 2213 147 997 . . . . 88 . . 2265 147 466 . . . 1796 . 1383 741 Melee 1855 | . . . . . . 1023 . 218 84 . . . . . . . . . . . . . . . 202 . . . . . . . 328 . Ramming 677 | . 33 4 . . 14 . . . . . . . . . . . . . . . . 32 . . . . . 34 . . 80 27 436 17 Kinetic 107079 | 80 417 472 . 63 2694 798 280 . . . 72 141 164 . 245 . . . . . . . . . . . 1067 6314 2861 3550 22029 11158 43934 10740 Thermal 33103 | . 494 73 . . . 86 . . . 53 76 38 693 . 1148 2169 4434 1923 1530 . 2652 3328 1902 1840 1790 3007 2181 46 . . 2661 . 238 741 Explosive 4018 | . . . . . . 46 . . . . . . . . . . . . . . . . . . 2265 147 415 . . . . . 1145 . Electromagnetic 7541 | . . . . . 18 432 816 . 474 598 . . 144 . 3824 147 997 . . . 40 . . . . . 51 . . . . . . . Impact . | . . . . . . . . . . . . . . . . . . . . . . . . . . . . . . . . . . . Slashing 1325 | . . . . . . 1023 . 218 84 . . . . . . . . . . . . . . . . . . . . . . . . . Piercing 328 | . . . . . . . . . . . . . . . . . . . . . . . . . . . . . . . . . 328 . Entropic 2671 | . . . . . . . . . . . . . . . . . . . . . . . . . 202 . . . . . . . 614 1855 Phasic 355 | . . . . . . . . . . . . . . . 269 86 . . . . . . . . . . . . . . . . . . Highest Corruption 89 | . . . . . . 2 2 2 13 89 . . 1 1 . . . . . . . 2 2 3 3 3 14 21 . 1 14 1 23 33 Average Corruption 8 | . . . . . . 1 2 2 6 18 . . 1 1 . . . . . . . 1 2 2 3 3 5 18 . 1 8 1 13 27 Corruption Purged 2 | . . . . . . 2 . . . . . . . . . . . . . . . . . . . . . . . . . . . . Corruption Blocked 1 | . . . . . . . . . . . . . . . . . 1 . . . . . . . . . . . . . . . . . Effects 1048 | . . . . . . 12 31 14 5 61 . . 12 2 . . . . . . . 10 34 30 5 55 13 55 . 2 116 1 537 53 Message Errors 260 | . . . . . . 3 11 2 1 13 . . 3 1 . . . . . . . 4 7 10 3 17 3 15 . 1 27 . 130 9 Matter Fused 250 | . . . . . . 1 11 2 1 16 . . 1 1 . . . . . . . 3 11 13 . 8 3 14 . 1 27 . 132 5 Heat Flow Errors 122 | . . . . . . 2 1 1 . 9 . . 2 . . . . . . . . . 4 2 . 9 1 2 . . 14 . 73 2 Energy Discharges 127 | . . . . . . 3 3 5 . 10 . . 4 . . . . . . . . 1 3 3 2 6 3 7 . . 6 . 67 4 Parts Rejected 11 | . . . . . . 1 . . . . . . . . . . . . . . . . . . . 1 . 1 . . 4 . 3 1 Parts Fused 12 | . . . . . . . . . 2 . . . . . . . . . . . . . 1 . . 1 . . . . 1 . 5 2 Data Loss (minor) 107 | . . . . . . 2 2 3 . 8 . . 1 . . . . . . . . . 3 1 . 6 1 3 . . 12 . 60 5 Data Loss (major) 41 | . . . . . . . 1 . 1 3 . . 1 . . . . . . . . 1 2 . . 2 1 2 . . 6 1 16 4 Misfires 41 | . . . . . . . 1 1 . 1 . . . . . . . . . . . . 1 1 . 1 1 4 . . 6 . 23 1 Alerts 20 | . . . . . . . 1 . . . . . . . . . . . . . . 1 2 . . 2 . . . . 3 . 11 . Misdirections 6 | . . . . . . . . . . . . . . . . . . . . . . . . . . . . 3 . . . . 1 2 Weapon Failures 51 | . . . . . . . . . . 1 . . . . . . . . . . . . . . . 2 . 4 . . 10 . 16 18 Overload Shots . | . . . . . . . . . . . . . . . . . . . . . . . . . . . . . . . . . . . Overflow Damage 3024 | . . . . . . 278 . 33 24 27 . . 31 . 130 215 288 100 159 . 135 138 105 34 130 162 304 . . . 291 . 339 101 Projectiles 2305 | . . . . . . . . . . 27 . . 31 . 51 215 288 100 159 . 135 138 105 34 18 162 238 . . . 283 . 220 101 Explosions 339 | . . . . . . 16 . . . . . . . . 79 . . . . . . . . . 59 . 66 . . . 5 . 114 . Melee 380 | . . . . . . 262 . 33 24 . . . . . . . . . . . . . . . 53 . . . . . 3 . 5 . Knockbacks 156 | . 1 . . . . . . . . . . . . . . . . . . . . 1 . . . . . . . . 56 . 55 43 Impact 14 | . 1 . . . . . . . . . . . . . . . . . . . . 1 . . . . . . . . . . 12 . Kinetic 137 | . . . . . . . . . . . . . . . . . . . . . . . . . . . . . . . 53 . 41 43 Secondary 5 | . . . . . . . . . . . . . . . . . . . . . . . . . . . . . . . 3 . 2 . Self-Inflicted Damage 192 | . . . . . . . 1 . . 11 13 . 35 . . . 3 . . . . . . . . . . . . . 14 . 50 65 Shots 9 | . . . . . . . 1 . . 1 1 . 1 . . . 1 . . . . . . . . . . . . . 2 . 1 1 Rammed 22 | . 5 1 . . 4 . . . . . . . . . . . . . . . . . . . . . . . . . 2 2 6 2 Targets Rammed 115 | . 5 1 . . 4 . . . . . . . . . . . . . . . . 1 . . . . . 3 . . 5 2 92 2 Kicked 92 | . . . . . . . . . . . . . . . . . . . . . . 1 . . . . . 3 . . 3 . 85 . Crushed 1 | . . . . . . . . . . . . . . . . . . . . . . . . . . . . . . . . . 1 . Highest Temperature 402 | . 264 288 . 9 291 230 268 218 114 382 248 288 329 150 402 91 260 99 . . . . 205 149 60 245 101 51 149 295 296 203 203 183 Average Temperature 86 | . 62 157 . 5 95 61 62 100 52 132 64 85 110 60 125 38 51 50 . . . . 107 14 34 79 25 21 51 85 109 127 73 73 Received Heat Transfer 4186 | . 138 189 . 18 792 318 108 . . 90 12 . 210 . 529 72 558 21 . . . 9 57 111 66 42 18 30 36 36 372 16 314 24 Effects 11 | . . . . . 1 . . . . 4 . . 4 . 1 . . . . . . . . . . . . . . . . 1 . . Shutdowns 3 | . . . . . . . . . . 1 . . 1 . 1 . . . . . . . . . . . . . . . . . . . Energy Bleed 5 | . . . . . 1 . . . . 3 . . . . . . . . . . . . . . . . . . . . . 1 . . Interference 3 | . . . . . . . . . . . . . 3 . . . . . . . . . . . . . . . . . . . . . Siege Activations 17 | . . . . . . . . . . . . . . . . . . . . . . . . . . . . . . . 4 1 12 . Total Turns 433 | . . . . . . . . . . . . . . . . . . . . . . . . . . . . . . . 42 10 381 . Longest Duration 106 | . . . . . . . . . . . . . . . . . . . . . . . . . . . . . . . 25 10 106 . Martial Activations . | . . . . . . . . . . . . . . . . . . . . . . . . . . . . . . . . . . . Shielding Activations . | . . . . . . . . . . . . . . . . . . . . . . . . . . . . . . . . . . . Robots Disrupted 2 | . . . . . . . . . . . . . . . 2 . . . . . . . . . . . . . . . . . . . Combat Hostiles 2 | . . . . . . . . . . . . . . . 2 . . . . . . . . . . . . . . . . . . . Robots Corrupted 32 | . . . . . . 1 3 . 4 1 . . 1 . 17 . 4 . . . . . . . . . . . . . 1 . . . Combat Hostiles 29 | . . . . . . 1 3 . 4 1 . . 1 . 15 . 4 . . . . . . . . . . . . . . . . . Parts Fried 62 | . . . . . . 1 7 . 15 4 . . 4 . 17 1 10 . . . . . 1 . . . . . . . 1 . 1 . Impact Corruptions 3 | . . . . . . . . . . . . . . . . . . . . . . . . . . . . . . . 1 . 2 . Robots Melted 12 | . . . . . . . . . . . . . . . . . . . . . . . . . . 1 . . . . 11 . . . Combat Hostiles 10 | . . . . . . . . . . . . . . . . . . . . . . . . . . 1 . . . . 9 . . . Parts Melted 56 | . 3 . . . . 1 . . . . 1 . . . . . . . 2 . 3 3 3 . . 1 . . . . 39 . . . Heat Transferred 27373 | . 1554 185 . . . 175 . . . 50 50 . 50 . 673 1100 2150 800 625 . 1150 1675 1050 975 732 1550 1075 37 . . 11337 . 36 344 Parts Sabotaged 3 | . . . . . . . . . . . . . . . . . . . . . . . . . . . . . . . 2 . 1 . Parts Stolen 1 | . . . . . . . . . . . . . 1 . . . . . . . . . . . . . . . . . . . . . Parts Stripped . | . . . . . . . . . . . . . . . . . . . . . . . . . . . . . . . . . . . Power Chain Reactions 6 | . . . . . . . . . . 1 1 . 1 . 2 . 1 . . . . . . . . . . . . . . . . . Alert | -11 -10 -10 -10 -9 -8 -7 -7 -7 -7 -6 -6 -6 -6 -6 -6 -5 -5 -5 -5 -5 -4 -4 -4 -4 -4 -3 -3 -3 -2 -2 -2 -1 -1 -1 ------- Run | Yrd Mat Min Exi Min Mat Fac Low Low Dat Pro Fac Low Low Zio Dee Pro Fac Upp Upp Zhi Pro Fac Upp Upp War Pro Res Qua Res Tes Frg Acc Com Ac0 Maximum Alert Level 5 | . 1 . . . 2 1 . . . . . . . . . . 2 . . . . 1 . . . . 2 3 2 1 5 5 5 . Low Security (%) 28 | 100 95 100 . 100 31 84 . . . . 100 . . . . . 47 . . . . 51 . . . . . . 7 94 15 . . . Level 1 15 | . 4 . . . 42 15 . . . . . . . . . . 43 . . . . 48 . . . . 37 57 90 5 5 . . . Level 2 5 | . . . . . 26 . . . . . . . . . . . 9 . . . . . . . . . 62 39 2 . 7 . . . Level 3 2 | . . . . . . . . . . . . . . . . . . . . . . . . . . . . 3 . . 22 . . . Level 4 1 | . . . . . . . . . . . . . . . . . . . . . . . . . . . . . . . 13 . . . Level 5 17 | . . . . . . . . . . . . . . . . . . . . . . . . . . . . . . . 20 39 35 . High Security 29 | . . . . . . . . . . . . . . . . . . . . . . . . . . . . . . . 13 60 64 . Max Security . | . . . . . . . . . . . . . . . . . . . . . . . . . . . . . . . . . . . Peak Influence 7128 | 5 238 138 . 62 507 262 . . . . 18 . . . . . 468 . . . . 306 . . . . 628 732 428 228 2768 2767 7128 . Initial 1770 | . . 88 . . . 147 . . . . . . . . . . . . . . . 33 . . . . 300 335 336 99 89 1660 1770 . Average 2275 | . 60 61 . 4 277 106 . . . . 2 . . . . . 204 . . . . 144 . . . . 437 405 283 106 1223 2048 6111 . Influence Increases 23270 | 5 519 328 . 70 1528 722 250 5 . 190 99 50 150 . . 235 912 325 235 . 455 807 242 321 955 590 1016 881 387 586 3584 1187 5985 651 Destroy 0b10 Robot/C 14780 | . 280 240 . 40 880 320 200 . . 160 . 40 120 . . 200 600 280 180 . 380 360 220 240 580 480 300 620 260 420 2620 880 3880 . Destroy 0b10 Robot/NC 765 | 5 20 . . . 25 70 15 5 . . 15 . 10 . . 5 10 10 . . 5 55 . . 5 10 30 75 10 15 105 60 205 . Destroy Leader 2530 | . 56 50 . 10 212 120 20 . . 30 2 10 20 . . 30 122 20 40 . 40 114 20 40 . 50 102 72 102 84 342 160 662 . Allied During Kill 554 | . . 8 . 20 89 . . . . . . . . . . . 3 . . . . 1 2 41 370 20 . . . . . . . . Successful Hack 237 | . 27 . . . 63 25 . . . . 50 . . . . . 5 . . . . . . . . . . . . 19 . 24 24 . Select Force Hacks 60 | . 60 . . . . . . . . . . . . . . . . . . . . . . . . . . . . . . . . . Disable Machine 1020 | . 15 . . . 30 120 . . . . . . . . . . 45 . . . . 105 . . . . 75 45 15 15 270 45 180 60 Anti-Garrison Action 300 | . . . . . 150 . . . . . . . . . . . . . . . . . . . . . . . . . 150 . . . Destroy Structure 2064 | . 1 . . . 4 37 . . . . 32 . . . . . 112 . . . . 172 . . . . 164 54 . 18 37 18 824 591 Advance Influence 300 | . . . . . . . . . . . . . . . . . . . . . . . . . . . 300 . . . . . . . Partial Spotted 15 | . . . . . . . . . . . . . . . . . . . . . . . . . . . . . . . . . 15 . Lose Combat Pursuer 645 | . 60 30 . . 75 30 15 . . . . . . . . . 15 15 15 . 30 . . . . 30 45 15 . 15 60 . 195 . Influence Decreases 22839 | 5 290 557 . 70 1204 804 492 5 . 190 99 50 124 26 . 235 447 790 235 . 401 603 500 254 208 1404 420 879 808 604 975 1188 1281 7691 Entered New Map 11852 | . . 141 . . . 177 90 . . . . . . 26 . . . 173 . . . 21 96 . 67 814 . 261 262 78 70 1108 997 7471 Time Decay 9224 | 5 280 376 . 70 544 544 392 5 . 190 99 50 114 . . 225 407 617 235 . 391 562 394 254 51 570 410 458 546 486 615 80 254 . Lost Part 690 | . 10 30 . . 90 30 10 . . . . . 10 . . 10 40 . . . 10 . 10 . 10 . 10 . . 30 140 . 30 220 Lost Ally 270 | . . 10 . . 120 . . . . . . . . . . . . . . . . 20 . . 80 20 . 10 . 10 . . . . Purge Threat 803 | . . . . . 450 53 . . . . . . . . . . . . . . . . . . . . . 150 . . 150 . . . Squads Dispatched 152 | . 4 . . 1 8 6 . . . . 1 . . . . . 10 . . . . 7 . . . . 6 6 4 8 41 10 40 . Investigation 10 | . 3 . . 1 1 1 . . . . . . . . . . 2 . . . . . . . . . . . . 1 1 . . . Extermination 23 | . . . . . . 4 . . . . . . . . . . 2 . . . . 4 . . . . 2 . . 4 5 . 2 . Reinforcement 27 | . 1 . . . 5 1 . . . . 1 . . . . . 4 . . . . 1 . . . . 1 3 3 . 3 2 2 . Assault 71 | . . . . . 2 . . . . . . . . . . . . . . . . . . . . . . 1 . . 24 8 36 . Garrison 1 | . . . . . . . . . . . . . . . . . . . . . . . . . . . . . . . 1 . . . Intercept 20 | . . . . . . . . . . . . . . . . . 2 . . . . 2 . . . . 3 2 1 3 7 . . . Searches Triggered . | . . . . . . . . . . . . . . . . . . . . . . . . . . . . . . . . . . . Construction Impeded 4 | . . . . . . . . . . . 1 . . . . . 1 . . . . . . . . . . . . . 1 1 . . Haulers Reinforced 4 | . . . . . . . . . . . . . . . . . 1 . . . . 1 . . . . . . 2 . . . . . Active Scanning Responses . | . . . . . . . . . . . . . . . . . . . . . . . . . . . . . . . . . . . Cargo Convoy Interrupts . | . . . . . . . . . . . . . . . . . . . . . . . . . . . . . . . . . . . Stealth | -11 -10 -10 -10 -9 -8 -7 -7 -7 -7 -6 -6 -6 -6 -6 -6 -5 -5 -5 -5 -5 -4 -4 -4 -4 -4 -3 -3 -3 -2 -2 -2 -1 -1 -1 --------- Run | Yrd Mat Min Exi Min Mat Fac Low Low Dat Pro Fac Low Low Zio Dee Pro Fac Upp Upp Zhi Pro Fac Upp Upp War Pro Res Qua Res Tes Frg Acc Com Ac0 Distress Signals 35 | . 1 . . . 2 . . . . . . . . . . . . . . . . . . . . 1 3 4 6 1 . 7 10 . Communications Jammed 48 | . . . . . . . . . . . . . . . . . . . . . . 1 . . . . . . . 25 22 . . . Distress Signals 46 | . . . . . . . . . . . . . . . . . . . . . . . . . . . . . . 25 21 . . . Times Spotted 997 | . 22 14 . 2 60 21 11 . 4 8 3 2 7 1 69 12 30 2 4 . 16 22 11 12 34 24 29 44 17 25 138 54 255 44 Peak Tracking Total 37 | . 3 3 . 2 8 4 4 . 4 3 4 2 4 1 37 3 7 2 4 . 5 2 3 4 16 4 6 5 6 6 13 12 17 10 Tactical Retreats 34 | . 2 1 . . 4 2 1 . . . . . . . 1 . 1 1 1 . 1 . . . . 1 3 1 . 1 4 . 9 . Traps | -11 -10 -10 -10 -9 -8 -7 -7 -7 -7 -6 -6 -6 -6 -6 -6 -5 -5 -5 -5 -5 -4 -4 -4 -4 -4 -3 -3 -3 -2 -2 -2 -1 -1 -1 ------- Run | Yrd Mat Min Exi Min Mat Fac Low Low Dat Pro Fac Low Low Zio Dee Pro Fac Upp Upp Zhi Pro Fac Upp Upp War Pro Res Qua Res Tes Frg Acc Com Ac0 Traps Triggered 14 | . 1 . . . 1 . . . . . . . . . . . . . . . . . . . . . . . . 2 7 . 3 . Indirectly . | . . . . . . . . . . . . . . . . . . . . . . . . . . . . . . . . . . . Trap Hack Attempts 11 | . . . . . . . . . . . . . . . . . . . . . . . . . . . . . . . . . 11 . Triggered . | . . . . . . . . . . . . . . . . . . . . . . . . . . . . . . . . . . . Disarmed . | . . . . . . . . . . . . . . . . . . . . . . . . . . . . . . . . . . . Reprogrammed 2 | . . . . . 1 . . . . . . . . . . . . . . . . . . . . . . . . . . . 1 . Reused . | . . . . . . . . . . . . . . . . . . . . . . . . . . . . . . . . . . . Traps Extracted 1 | . . . . . . . . . . . . . . . . . . . . . . . . . . . . . . . . . 1 . Installed 1 | . . . . . . . . . . . . . . . . . . . . . . . . . . . . . . . . . 1 . Triggered . | . . . . . . . . . . . . . . . . . . . . . . . . . . . . . . . . . . . Most Traps Carried 2 | . . . . . . . 2 2 2 . . . . . . . . . . . . . . . . . . . . . . . 1 . Machines | -11 -10 -10 -10 -9 -8 -7 -7 -7 -7 -6 -6 -6 -6 -6 -6 -5 -5 -5 -5 -5 -4 -4 -4 -4 -4 -3 -3 -3 -2 -2 -2 -1 -1 -1 ---------- Run | Yrd Mat Min Exi Min Mat Fac Low Low Dat Pro Fac Low Low Zio Dee Pro Fac Upp Upp Zhi Pro Fac Upp Upp War Pro Res Qua Res Tes Frg Acc Com Ac0 Machines Disabled 89 | . 1 . . . 3 8 . . . . . . . 3 1 1 3 2 . . . 7 . 1 . . 5 3 1 1 29 3 13 4 Max in Single Turn 5 | . 1 . . . 1 5 . . . . . . . 1 1 1 1 2 . . . 2 . 1 . . 1 1 1 1 2 2 2 1 Garrison Access 3 | . . . . . 1 . . . . . . . . . . . . . . . . . . . . . . . 1 . 1 . . . Machines Repaired . | . . . . . . . . . . . . . . . . . . . . . . . . . . . . . . . . . . . Machines Dismantled 1 | . . . . . . 1 . . . . . . . . . . . . . . . . . . . . . . . . . . . . Machines Sabotaged . | . . . . . . . . . . . . . . . . . . . . . . . . . . . . . . . . . . . Overloaded Fab Kills . | . . . . . . . . . . . . . . . . . . . . . . . . . . . . . . . . . . . Hacking | -11 -10 -10 -10 -9 -8 -7 -7 -7 -7 -6 -6 -6 -6 -6 -6 -5 -5 -5 -5 -5 -4 -4 -4 -4 -4 -3 -3 -3 -2 -2 -2 -1 -1 -1 --------- Run | Yrd Mat Min Exi Min Mat Fac Low Low Dat Pro Fac Low Low Zio Dee Pro Fac Upp Upp Zhi Pro Fac Upp Upp War Pro Res Qua Res Tes Frg Acc Com Ac0 Machines Accessed 71 | . 8 1 2 1 10 8 2 . 4 . 4 1 1 . . 1 5 1 . 4 . 2 1 1 2 . 1 . . 2 5 1 3 . Terminals 35 | . 6 1 . . 7 5 . . . . 3 . . . . . 2 1 . . . 2 . . . . . . . . 4 1 3 . Fabricators 6 | . . . . . . 2 . . . . . . . . . . 2 . . . . . . . . . . . . 2 . . . . Repair Stations . | . . . . . . . . . . . . . . . . . . . . . . . . . . . . . . . . . . . Recycling Units 3 | . 2 . . . . . . . . . 1 . . . . . . . . . . . . . . . . . . . . . . . Scanalyzers 5 | . . . . . 2 1 . . . . . . . . . . 1 . . . . . . . . . 1 . . . . . . . Garrison Access 2 | . . . . . 1 . . . . . . . . . . . . . . . . . . . . . . . . . 1 . . . Total Hacks 215 | . 25 1 2 1 55 21 7 . 29 . 8 1 1 . . 1 14 5 . 13 . 5 1 1 5 . 3 . . 5 7 1 3 . Successful 148 | . 14 . 2 1 40 9 7 . 29 . 4 1 1 . . 1 6 5 . 13 . . 1 1 5 . . . . 4 2 1 1 . Failed 66 | . 11 1 . . 14 12 . . . . 4 . . . . . 8 . . . . 5 . . . . 3 . . 1 5 . 2 . Catastrophic 18 | . . 1 . . 2 3 . . . . 1 . . . . . 3 . . . . 4 . . . . . . . . 2 . 2 . Database Lockouts 1 | . . . . . 1 . . . . . . . . . . . . . . . . . . . . . . . . . . . . . Manual 90 | . 22 1 1 . 30 12 . . . . 5 . . . . . 6 . . . . 5 . . 1 . . . . 2 2 1 2 . Terminals 98 | . 22 1 . . 31 15 . . . . 5 . . . . . 4 5 . . . 5 . . . . . . . . 6 1 3 . Fabricators 16 | . . . . . . 4 . . . . . . . . . . 7 . . . . . . . . . . . . 5 . . . . Repair Stations . | . . . . . . . . . . . . . . . . . . . . . . . . . . . . . . . . . . . Recycling Units 6 | . 3 . . . . . . . . . 3 . . . . . . . . . . . . . . . . . . . . . . . Scanalyzers 30 | . . . . . 22 2 . . . . . . . . . . 3 . . . . . . . . . 3 . . . . . . . Garrison Access 3 | . . . . . 2 . . . . . . . . . . . . . . . . . . . . . . . . . 1 . . . Terminal Hacks 81 | . 1 . 2 1 7 4 7 . 29 . . 1 1 . . 1 . 5 . 13 . . 1 1 5 . . . . . 2 . . . Record 30 | . . . 1 . . 1 6 . 11 . . . . . . 1 . 5 . 5 . . . . . . . . . . . . . . Part Schematic 13 | . . . . . 1 . . . 8 . . . . . . . . . . 4 . . . . . . . . . . . . . . Robot Schematic 7 | . . . . . . . . . 7 . . . . . . . . . . . . . . . . . . . . . . . . . Prototype ID Bank 13 | . 1 . . . . 1 . . 3 . . . . . . . . . . 4 . . . . 4 . . . . . . . . . Open Door 7 | . . . . 1 . . 1 . . . . 1 1 . . . . . . . . . 1 1 1 . . . . . . . . . Unreport Threat 6 | . . . . . 3 2 . . . . . . . . . . . . . . . . . . . . . . . . 1 . . . Reprogram Traps 1 | . . . . . 1 . . . . . . . . . . . . . . . . . . . . . . . . . . . . . Zone Layout 2 | . . . . . 2 . . . . . . . . . . . . . . . . . . . . . . . . . . . . . Proto ID Catalog 2 | . . . 1 . . . . . . . . . . . . . . . . . . . . . . . . . . . 1 . . . Fabricator Hacks 9 | . . . . . . 2 . . . . . . . . . . 4 . . . . . . . . . . . . 3 . . . . Load Schematic 4 | . . . . . . 1 . . . . . . . . . . 2 . . . . . . . . . . . . 1 . . . . Build 5 | . . . . . . 1 . . . . . . . . . . 2 . . . . . . . . . . . . 2 . . . . Repair Station Hacks . | . . . . . . . . . . . . . . . . . . . . . . . . . . . . . . . . . . . Recycling Unit Hacks 1 | . . . . . . . . . . . 1 . . . . . . . . . . . . . . . . . . . . . . . Retrieve Components 1 | . . . . . . . . . . . 1 . . . . . . . . . . . . . . . . . . . . . . . Scanalyzer 23 | . . . . . 20 2 . . . . . . . . . . 1 . . . . . . . . . . . . . . . . . Insert Component 12 | . . . . . 10 1 . . . . . . . . . . 1 . . . . . . . . . . . . . . . . . Analyze 11 | . . . . . 10 1 . . . . . . . . . . . . . . . . . . . . . . . . . . . . Garrison Access Hacks . | . . . . . . . . . . . . . . . . . . . . . . . . . . . . . . . . . . . Unauthorized Hacks 34 | . 13 . . . 13 1 . . . . 3 . . . . . 1 . . . . . . . . . . . . 1 . 1 1 . Terminals 30 | . 11 . . . 13 1 . . . . 3 . . . . . . . . . . . . . . . . . . . . 1 1 . Track 4 | . . . . . 3 . . . . . . . . . . . . . . . . . . . . . . . . . . 1 . . Assimilate 1 | . 1 . . . . . . . . . . . . . . . . . . . . . . . . . . . . . . . . . Botnet 12 | . 4 . . . 3 1 . . . . 3 . . . . . . . . . . . . . . . . . . . . . 1 . Disrupt 1 | . . . . . 1 . . . . . . . . . . . . . . . . . . . . . . . . . . . . . Operators 2 | . 2 . . . . . . . . . . . . . . . . . . . . . . . . . . . . . . . . . Skim 10 | . 4 . . . 6 . . . . . . . . . . . . . . . . . . . . . . . . . . . . . Fabricators 2 | . . . . . . . . . . . . . . . . . 1 . . . . . . . . . . . . 1 . . . . Prioritize 2 | . . . . . . . . . . . . . . . . . 1 . . . . . . . . . . . . 1 . . . . Repair Stations . | . . . . . . . . . . . . . . . . . . . . . . . . . . . . . . . . . . . Recycling Units 2 | . 2 . . . . . . . . . . . . . . . . . . . . . . . . . . . . . . . . . Tunnel 2 | . 2 . . . . . . . . . . . . . . . . . . . . . . . . . . . . . . . . . Scanalyzers . | . . . . . . . . . . . . . . . . . . . . . . . . . . . . . . . . . . . Garrison Access . | . . . . . . . . . . . . . . . . . . . . . . . . . . . . . . . . . . . Data Cores Recovered 1 | . . . . . . . . . . . . . . . . . . . . . . . . . . . . . . . 1 . . . Used . | . . . . . . . . . . . . . . . . . . . . . . . . . . . . . . . . . . . Hacking Detections 49 | . 7 1 . . 9 8 . . . . 4 . . . . . 5 1 . . . 3 . . . . 1 . . 2 4 1 3 . Full Trace Events 6 | . . . . . 1 1 . . . . . . . . . . 2 1 . . . . . . . . . . . 1 . . . . Feedback Events . | . . . . . . . . . . . . . . . . . . . . . . . . . . . . . . . . . . . Feedback Blocked . | . . . . . . . . . . . . . . . . . . . . . . . . . . . . . . . . . . . Robot Schematics Acquired 14 | . . . . . . . . . 7 . . . . 3 . . . . . . . . . . . . . . . . 4 . . . Robots Built . | . . . . . . . . . . . . . . . . . . . . . . . . . . . . . . . . . . . Authchips . | . . . . . . . . . . . . . . . . . . . . . . . . . . . . . . . . . . . Time . | . . . . . . . . . . . . . . . . . . . . . . . . . . . . . . . . . . . Total Robot Build Rating . | . . . . . . . . . . . . . . . . . . . . . . . . . . . . . . . . . . . Part Schematics Acquired 53 | . . . . . 9 . . . 8 . . . . 15 . . . . . 4 . . . . . . . 3 . . 14 . . . Parts Built 5 | . . . . . . 1 . . . . . . . . . . 1 . . . . . . . . . . . . 3 . . . . Authchips . | . . . . . . . . . . . . . . . . . . . . . . . . . . . . . . . . . . . Time 388 | . . . . . . 51 . . . . . . . . . . 190 . . . . . . . . . . . . 147 . . . . Total Part Build Rating 22 | . . . . . . 1 . . . . . . . . . . 6 . . . . . . . . . . . . 15 . . . . Parts Repaired . | . . . . . . . . . . . . . . . . . . . . . . . . . . . . . . . . . . . Time . | . . . . . . . . . . . . . . . . . . . . . . . . . . . . . . . . . . . Parts Recycled . | . . . . . . . . . . . . . . . . . . . . . . . . . . . . . . . . . . . Recycled Matter . | . . . . . . . . . . . . . . . . . . . . . . . . . . . . . . . . . . . Retrieved Matter . | . . . . . . . . . . . . . . . . . . . . . . . . . . . . . . . . . . . Retrieved Components 2 | . . . . . . . . . . . 2 . . . . . . . . . . . . . . . . . . . . . . . Parts Scanalyzed 9 | . . . . . 8 1 . . . . . . . . . . . . . . . . . . . . . . . . . . . . Part Schematics Acquired 8 | . . . . . 8 . . . . . . . . . . . . . . . . . . . . . . . . . . . . . Parts Damaged 1 | . . . . . 1 . . . . . . . . . . . . . . . . . . . . . . . . . . . . . Bothacking | -11 -10 -10 -10 -9 -8 -7 -7 -7 -7 -6 -6 -6 -6 -6 -6 -5 -5 -5 -5 -5 -4 -4 -4 -4 -4 -3 -3 -3 -2 -2 -2 -1 -1 -1 ------------ Run | Yrd Mat Min Exi Min Mat Fac Low Low Dat Pro Fac Low Low Zio Dee Pro Fac Upp Upp Zhi Pro Fac Upp Upp War Pro Res Qua Res Tes Frg Acc Com Ac0 Used RIF Installer . | . . . . . . . . . . . . . . . . . . . . . . . . . . . . . . . . . . . Robots Hacked 1 | . . . . . . . . . . . . . . . . . . . . . . . . . . . . . . . . . . 1 Non-combat . | . . . . . . . . . . . . . . . . . . . . . . . . . . . . . . . . . . . Combat 1 | . . . . . . . . . . . . . . . . . . . . . . . . . . . . . . . . . . 1 Robot Hacks Applied 1 | . . . . . . . . . . . . . . . . . . . . . . . . . . . . . . . . . . 1 parse_system 1 | . . . . . . . . . . . . . . . . . . . . . . . . . . . . . . . . . . 1 Relay Couplers Released 3 | . . . . . 1 . . . . . . . . . . . . . . . . . . . . . . . 1 . 1 . . . Machine Destruction 3 | . . . . . 1 . . . . . . . . . . . . . . . . . . . . . . . 1 . 1 . . . Fabnet Peak Effective % . | . . . . . . . . . . . . . . . . . . . . . . . . . . . . . . . . . . . Robots Rewired 13 | . . . 4 . . . . . . . . . . . . . . . . . . . . 4 5 . . . . . . . . . Allies Hacked 1 | . . . . . . . . . . . . . . . . . . . . . . . . . . . . . . 1 . . . . Hacks Repelled . | . . . . . . . . . . . . . . . . . . . . . . . . . . . . . . . . . . . Allies | -11 -10 -10 -10 -9 -8 -7 -7 -7 -7 -6 -6 -6 -6 -6 -6 -5 -5 -5 -5 -5 -4 -4 -4 -4 -4 -3 -3 -3 -2 -2 -2 -1 -1 -1 -------- Run | Yrd Mat Min Exi Min Mat Fac Low Low Dat Pro Fac Low Low Zio Dee Pro Fac Upp Upp Zhi Pro Fac Upp Upp War Pro Res Qua Res Tes Frg Acc Com Ac0 Total Allies 21 | . 1 3 4 . . . . . . . . . . 1 . . . . . . . 1 . 4 5 . . 1 . 1 . . . . Largest Group 8 | . 1 3 7 7 7 . . . . . . . . 1 1 . . . . . . 1 . 4 8 2 . 1 . 1 . . . . Highest-Rated Group 416 | . 10 40 98 98 98 . . . . . . . . 99 99 . . . . . . 10 . 188 416 105 . 26 . 45 . . . . Highest-Rated Ally 99 | . 10 16 21 21 21 . . . . . . . . 99 99 . . . . . . 10 . 47 68 56 . 26 . 45 . . . . Total Orders 24 | . . . . . . . . . . . . . . . . . 5 . . . . 3 1 . 4 . 2 5 1 3 . . . . EXPLORE 2 | . . . . . . . . . . . . . . . . . . . . . . . . . 2 . . . . . . . . . RETURN 22 | . . . . . . . . . . . . . . . . . 5 . . . . 3 1 . 2 . 2 5 1 3 . . . . Ally Attacks 233 | . . 4 . 15 82 . . . . . . . . . 35 . 1 . . . . 6 8 6 66 10 . . . . . . . . Total Damage 6400 | . . 33 . 181 1372 . . . . . . . . . 1733 . 25 . . . . 47 54 160 2449 346 . . . . . . . . Kills 52 | . . 1 . 2 16 . . . . . . . . . 15 . . . . . . . . 2 14 2 . . . . . . . . Allies Corrupted 1 | . . . . . . . . . . . . . . . . . . . . . . . . . . . . . . 1 . . . . Allies Melted 3 | . . . . . . . . . . . . . . . . . . . . . . . . . 1 . . . 2 . . . . . Intel | -11 -10 -10 -10 -9 -8 -7 -7 -7 -7 -6 -6 -6 -6 -6 -6 -5 -5 -5 -5 -5 -4 -4 -4 -4 -4 -3 -3 -3 -2 -2 -2 -1 -1 -1 ------- Run | Yrd Mat Min Exi Min Mat Fac Low Low Dat Pro Fac Low Low Zio Dee Pro Fac Upp Upp Zhi Pro Fac Upp Upp War Pro Res Qua Res Tes Frg Acc Com Ac0 Active Infowar (turns) 55649 | 50 1503 . 782 1221 878 1448 2213 1271 286 1484 244 2498 3774 1731 . . 336 4788 3474 481 3364 1094 2490 2051 1610 2765 980 1143 1573 1304 3774 427 4491 121 Optics 18028 | . . . . . 764 394 . . . . . . . . . . . . . . . . . . 415 2765 980 1143 1573 1304 3774 427 4489 . Sensors 5062 | . . . . . . 996 . . . . . . . . . . 336 . . . 346 878 2490 16 . . . . . . . . . . A.S.S. 25325 | . . . . . . 63 2213 1271 286 1484 244 2498 3774 1731 . . . 4788 3474 481 3018 . . . . . . . . . . . . . IFF 8330 | . . . . . . . . . . . . . . . . . . . . . . . . 2035 1204 2217 905 1103 866 . . . . . Structural 193 | . . . . . . . . . . . . . . . . . . . . . . . . . . . . 193 . . . . . . Seismic 3670 | 50 1503 . 782 1221 114 . . . . . . . . . . . . . . . . . . . . . . . . . . . . . Decoding 1993 | . . . . . . . . . . . . . . . . . . . . . . . . . . 475 980 538 . . . . . . Machine Analysis 1301 | . . . . . 404 897 . . . . . . . . . . . . . . . . . . . . . . . . . . . . Triangulation 123 | . . . . . . . . . . . . . . . . . . . . . . . . . . . . . . . . . 2 121 Cloaking 6291 | . . . . . . . . . . . . . . . . . . . . . . . . . . . . 728 1573 1239 2505 246 . . Jamming 3625 | . . . . . . . . . . . . . . . . . . . . . . 520 . . 163 . . . . 936 2006 . . . Robot Analysis Total 151 | . . . . . . . . . 151 . . . . . . . . . . . . . . . . . . . . . . . . . Derelict Logs Recovered 20 | . . 2 . 1 . . 3 . . 2 . 1 1 1 . 1 . 1 2 . 3 . 1 1 . . . . . . . . . . Drone Launches 23 | . . . . . . . . . . . . . . . . . 5 . . . . 4 1 . 2 . 2 5 1 3 . . . . Drone Recoveries 22 | . . . . . . . . . . . . . . . . . 5 . . . . 3 1 . 2 . 2 5 1 3 . . . . Decoded 0b10 Intel 99 | . . . . . . . . . . . . . . . . . . . . . . . . . . . 61 38 . . . . . . Items 99 | . . . . . . . . . . . . . . . . . . . . . . . . . . . 61 38 . . . . . . Exploration | -11 -10 -10 -10 -9 -8 -7 -7 -7 -7 -6 -6 -6 -6 -6 -6 -5 -5 -5 -5 -5 -4 -4 -4 -4 -4 -3 -3 -3 -2 -2 -2 -1 -1 -1 ------------- Run | Yrd Mat Min Exi Min Mat Fac Low Low Dat Pro Fac Low Low Zio Dee Pro Fac Upp Upp Zhi Pro Fac Upp Upp War Pro Res Qua Res Tes Frg Acc Com Ac0 Turns Passed 84992 | 142 1796 1005 782 1221 2132 1651 2213 1271 286 1484 521 2498 3788 2231 6415 3688 1875 4924 3474 481 4234 2231 2554 2051 1610 2765 980 1143 1573 1304 3788 427 15764 690 Spaces Moved 36083 | 73 965 565 453 566 511 851 1331 775 139 876 242 1128 2171 1248 2410 1229 410 1830 1120 149 1264 1024 1189 1029 779 1108 381 486 800 608 1646 196 6271 260 Core 59 | 4 . . . . . . . . . . . . . . . . . . . . . . . . . . . . . . . . . 55 Treads 10993 | 69 927 565 453 566 509 . . . . . . . . 69 387 . . . . . . . . . . . . . . . 881 196 6166 205 Legs 14375 | . . . . . . . . . . . . . . . 99 1229 410 1830 1120 149 1264 1024 1189 1029 779 1108 381 486 800 608 765 . 105 . Wheels 10656 | . 38 . . . 2 851 1331 775 139 876 242 1128 2171 1179 1924 . . . . . . . . . . . . . . . . . . . Hover . | . . . . . . . . . . . . . . . . . . . . . . . . . . . . . . . . . . . Flight . | . . . . . . . . . . . . . . . . . . . . . . . . . . . . . . . . . . . Fastest Speed 50 | 50 105 160 160 160 150 120 150 155 140 140 155 160 145 145 155 210 210 210 240 240 210 185 185 185 185 185 185 183 185 175 110 160 152 50 Average Speed 189 | 153 157 160 160 210 246 144 156 161 154 154 164 162 161 173 207 239 216 243 240 240 239 185 185 185 185 185 185 184 185 179 158 160 198 150 Slowest Speed 540 | 160 160 240 160 240 320 225 220 165 155 155 170 170 235 405 405 240 240 330 240 240 240 185 186 185 185 185 185 185 185 196 175 160 540 237 Overloaded Moves . | . . . . . . . . . . . . . . . . . . . . . . . . . . . . . . . . . . . Propulsion Burnouts . | . . . . . . . . . . . . . . . . . . . . . . . . . . . . . . . . . . . Robots Hopped . | . . . . . . . . . . . . . . . . . . . . . . . . . . . . . . . . . . . Potential Cave-ins 27 | . . . . . . . . . . . . . . . 1 . . . . . . . . . . . . . 2 . 22 . 2 . Cave-ins Triggered . | . . . . . . . . . . . . . . . . . . . . . . . . . . . . . . . . . . . Teleports 4 | . . . . . . . . . . . . . . . . . . . . . . . . . . . . . . . 1 2 1 . Exploration Rate (%) 67 | 5 97 99 92 99 65 27 96 90 79 74 10 85 99 87 85 99 18 97 99 62 93 14 96 94 93 96 17 71 17 67 39 7 89 22 Regions Visited 34 Branch Regions 25 Pre-discovered Areas 40 | . 2 1 1 1 3 . . . 23 . . 1 . 1 . 1 . . 1 3 2 . . . . . . . . . . . . . Known Exits Taken 19 | . . . . . . 1 1 1 1 1 1 1 1 . . 1 1 1 1 1 1 1 1 . . 1 1 . 1 . . . . . Unknown Exits Taken 15 | 1 1 1 1 1 1 . . . . . . . . 1 1 . . . . . . . . 1 1 . . 1 . 1 1 1 1 . Scrap Searched 39 | . . 1 . 2 . . 4 2 . 2 . 1 4 5 . 5 . 2 2 . 2 . 4 2 . 1 . . . . . . . . Spaces Dug 423 | . . . . . . 16 1 . . . 29 33 11 . 18 18 42 32 16 . 15 15 6 4 . 32 71 27 . . 1 5 27 4 Terrain Destroyed 1535 | . . . . . 1 36 1 . . 7 36 60 21 . 51 42 65 90 61 . 75 94 31 27 28 75 98 27 4 . 30 11 408 156 Melee 37 | . . . . . . 16 1 . . . . . . . . . 1 . . . . . . . . . 9 8 . . . . 2 . Projectile 1194 | . . . . . 1 . . . . . 30 55 19 . 51 42 64 76 61 . 75 60 31 27 3 44 51 19 4 . 26 11 311 133 AOE 274 | . . . . . . 20 . . . 7 6 . 2 . . . . 14 . . . 34 . . 25 31 38 . . . . . 74 23 Terrain Rammed . | . . . . . . . . . . . . . . . . . . . . . . . . . . . . . . . . . . . Walls Destroyed . | . . . . . . . . . . . . . . . . . . . . . . . . . . . . . . . . . . . Machines Disabled . | . . . . . . . . . . . . . . . . . . . . . . . . . . . . . . . . . . . Actions | -11 -10 -10 -10 -9 -8 -7 -7 -7 -7 -6 -6 -6 -6 -6 -6 -5 -5 -5 -5 -5 -4 -4 -4 -4 -4 -3 -3 -3 -2 -2 -2 -1 -1 -1 --------- Run | Yrd Mat Min Exi Min Mat Fac Low Low Dat Pro Fac Low Low Zio Dee Pro Fac Upp Upp Zhi Pro Fac Upp Upp War Pro Res Qua Res Tes Frg Acc Com Ac0 Total 49668 | 91 1115 614 511 595 1217 1161 1409 786 194 961 326 1692 2387 1316 3689 1911 1289 2222 1843 277 2396 1252 1496 1139 914 1745 554 696 895 818 2589 361 8729 478 Wait 8644 | . 34 12 3 1 529 100 19 . 9 34 16 484 136 22 904 626 734 302 687 107 1022 143 258 52 19 572 28 38 45 74 180 15 1430 9 Move 36049 | 72 964 564 452 565 510 850 1330 774 138 875 241 1127 2170 1247 2409 1228 409 1829 1119 148 1263 1023 1188 1028 778 1107 380 485 799 607 1645 195 6270 260 Hop . | . . . . . . . . . . . . . . . . . . . . . . . . . . . . . . . . . . . Pick Up 641 | 7 20 2 1 13 14 38 5 2 13 4 12 5 7 11 85 4 16 18 1 6 24 7 6 5 14 5 18 14 8 17 103 10 107 19 Fast Attach 247 | 6 2 2 . . 17 12 5 . 2 2 1 3 4 5 10 2 4 5 . 2 2 3 4 . 3 4 5 8 4 18 50 5 50 7 Attach 239 | 1 1 2 . . 7 14 . . 5 3 3 . 3 8 23 . 1 2 . 1 4 3 2 1 2 1 5 5 2 6 48 8 53 25 Detach 83 | . . . . . . 5 . . . . . . 2 . 3 . 1 2 1 1 2 1 2 1 . 1 1 5 . 2 18 6 27 2 Swap 549 | . 12 3 1 3 18 29 16 2 9 26 6 7 6 4 55 2 11 . . 2 1 10 3 1 7 1 10 22 3 23 100 14 123 19 Drop 814 | . 16 3 3 9 24 40 9 2 9 1 12 9 9 12 99 12 27 27 5 10 32 7 11 8 16 16 23 21 11 29 125 12 147 18 Fire 2043 | 5 61 25 . 4 94 37 24 . 7 16 35 57 50 6 97 37 85 37 30 . 46 54 22 17 18 38 75 86 23 42 304 94 400 117 Melee 81 | . . . . . . 32 1 6 2 . . . . 1 4 . 1 . . . . . . . 1 . 9 9 . . 1 . 14 . Ram . | . . . . . . . . . . . . . . . . . . . . . . . . . . . . . . . . . . . Kick 92 | . . . . . . . . . . . . . . . . . . . . . . 1 . . . . . 3 . . 3 . 85 . Crush 23 | . 5 1 . . 4 . . . . . . . . . . . . . . . . . . . . . . . . . 2 2 7 2 Escape Stasis 12 | . . . . . . . . . . . . . . . . . . . . . . . . . . . . . . . 10 . 2 . Rewire 135 | . . . 51 . . . . . . . . . . . . . . . . . . . . 26 56 . . . . . . . 2 . Trap 12 | . . . . . . . . . . . . . . . . . . . . . . . . . . . . . . . . . 12 . Miscellaneous 4 | . . . . . . 4 . . . . . . . . . . . . . . . . . . . . . . . . . . . . Route ------- -11/Scrapyard -10/Materials (discovered 6 exits: [*Mat x3] / *Min x2 / [*Sub]) -10/Mines (discovered 3 exits: [*Mat x2] / *Exi) -10/Exiles (discovered 2 exits: *Min x2) -9/Mines (discovered 2 exits: *Mat x2) -8/Materials (discovered 2 exits: *Fac x2) -7/Factory (discovered 2 exits: Sto / *Low) -7/Lower Caves (discovered 2 exits: *Low / *Dat) -7/Lower Caves (discovered 2 exits: *Fac / *Dat) -7/Data Miner -6/Proximity Caves -6/Factory (discovered 4 exits: Fac / *Low / Ext x2) -6/Lower Caves -6/Lower Caves (discovered 2 exits: *Fac / *Zio) -6/Zion (discovered 2 exits: [*Dee] / [*Pro]) -6/Deep Caves -5/Proximity Caves -5/Factory (discovered 6 exits: Fac x4 / *Upp x2) -5/Upper Caves -5/Upper Caves (discovered 2 exits: *Fac / *Zhi) -5/Zhirov -4/Proximity Caves -4/Factory (discovered 6 exits: Res x4 / *Upp x2) -4/Upper Caves -4/Upper Caves (discovered 2 exits: *Res / *War) -4/Warlord -3/Proximity Caves -3/Research (discovered 3 exits: Arm / *Qua x2) -3/Quarantine -2/Research -2/Testing (discovered 2 exits: [*Sec] / *Frg) -2/Protoforge -1/Access -1/Command (discovered 3 exits: [*Sur x2] / [*Ac0]) -1/Access_0 History --------- Turn | Location | Event 3 | -11/Scrapyard | Discovered new exit (range 16) 143 | -11/Scrapyard | Entered Materials 144 | -10/Materials | Met a group of wandering Federalists 303 | -10/Materials | Build established: Mutant 413 | -10/Materials | Discovered new exit (range 15) 466 | -10/Materials | Discovered new exit (range 9) 842 | -10/Materials | Discovered new exit (range 5) 1077 | -10/Materials | Discovered new exit (range 13) 1427 | -10/Materials | Discovered new exit (range 15) 1510 | -10/Materials | Discovered new exit (range 8) 1939 | -10/Materials | Entered Mines 1939 | -10/Mines | Accompanied by 1 ally 2228 | -10/Mines | Learned location of Storage (-7) 2368 | -10/Mines | Discovered new exit (range 7) 2459 | -10/Mines | Discovered new exit (range 13) 2610 | -10/Mines | Learned Materials terminal intel 2616 | -10/Mines | Assisted by bots powering up and referring to "LRC-V3" 2937 | -10/Mines | Deemed a non-threat by the Exiles lab entrance 2937 | -10/Mines | Discovered new exit (range 5) 2944 | -10/Mines | Entered Exiles 2944 | -10/Exiles | Found Exiles lab destroyed 2944 | -10/Exiles | Accompanied by 3 allies 2970 | -10/Exiles | Discovered new exit (range 14) 3345 | -10/Exiles | Build established: Commander-Mutant 3431 | -10/Exiles | Learned location of Zion (-6) 3523 | -10/Exiles | Opened EX-Vault 3536 | -10/Exiles | Found XL Autogun Array 3702 | -10/Exiles | Discovered new exit (range 14) 3726 | -10/Exiles | Entered Mines 3726 | -9/Mines | Accompanied by 7 allies 3802 | -9/Mines | Met a Derelict shopkeep closing up shop 4054 | -9/Mines | Discovered new exit (range 13) 4194 | -9/Mines | Discovered new exit (range 12) 4462 | -9/Mines | Received a Rocket Launcher from a helpful Derelict 4663 | -9/Mines | Joined a pair of Derelicts in attacking an 0b10 outpost 4776 | -9/Mines | A weapon hastily lodged in a ceiling crevice suddenly fell to the ground 4947 | -9/Mines | Entered Materials 4947 | -8/Materials | Accompanied by 7 allies 4947 | -8/Materials | Evolved 4 slots: Utility x4 4948 | -8/Materials | Loaded intel: 12 terminal locations 5136 | -8/Materials | Lost 3 allies 5347 | -8/Materials | Found Prototype Device 5367 | -8/Materials | Lost 3 parts (1p1n1u) 5493 | -8/Materials | Discovered new exit (range 10) 5618 | -8/Materials | Build established: Scavenger-Mutant 5746 | -8/Materials | Identified Active Sensor Suite 5921 | -8/Materials | Central database locked down 6074 | -8/Materials | Learned Factory emergency access door positions 6230 | -8/Materials | Learned Storage emergency access door positions 6258 | -8/Materials | Learned location of 2 exits from Lower Caves 6342 | -8/Materials | Learned Storage trap positions 6521 | -8/Materials | Discovered new exit (range 20) 7079 | -8/Materials | Entered Factory 7079 | -7/Factory | Evolved 2 slots: Power x1, Utility x1 7080 | -7/Factory | Identified exit to Storage 7080 | -7/Factory | Identified exit to Lower Caves 7338 | -7/Factory | Fabricated Huge Storage Unit (x1) 8079 | -7/Factory | Build established: Mutant 8730 | -7/Factory | Entered Lower Caves 8731 | -7/Lower Caves | Identified exit to Lower Caves 8797 | -7/Lower Caves | A Derelict revealed a hidden shortcut to meet someone special 8807 | -7/Lower Caves | Identified exit to Data Miner 8954 | -7/Lower Caves | Build established: Scavenger-Skirmisher 9268 | -7/Lower Caves | Learned location of 1 exit from Factory 9828 | -7/Lower Caves | Encountered a Warlord checkpoint 10055 | -7/Lower Caves | Build established: Skirmisher 10383 | -7/Lower Caves | Entered an active Warlord outpost 10403 | -7/Lower Caves | Learned Armory security intel 10403 | -7/Lower Caves | Learned Research terminal intel 10403 | -7/Lower Caves | Learned Extension garrison access intel 10489 | -7/Lower Caves | Attracted the attention of an 0b10 checkpoint 10635 | -7/Lower Caves | Learned Factory terminal intel 10943 | -7/Lower Caves | Entered another Lower Caves area 10980 | -7/Lower Caves | Discovered new exit (range 6) 10986 | -7/Lower Caves | Identified exit to Factory 11652 | -7/Lower Caves | Encountered a Warlord checkpoint 12214 | -7/Lower Caves | Entered Data Miner 12216 | -7/Data Miner | Discovered new exit (range 6) 12235 | -7/Data Miner | Build established: Assassin 12245 | -7/Data Miner | Met Data Miner 12278 | -7/Data Miner | Learned location of Section 7 (-2) 12278 | -7/Data Miner | Acquired the access code to Warlord's prototype stash 12301 | -7/Data Miner | Received God Mode back door access code from Data Miner 12324 | -7/Data Miner | Interfaced with the Data Conduit 12388 | -7/Data Miner | Lost 6 parts (2p1n1u2w) 12393 | -7/Data Miner | Found Corrupted Exp. Thermal Shield 12412 | -7/Data Miner | System corruption reached 10% 12497 | -7/Data Miner | Identified exit to Proximity Caves 12500 | -7/Data Miner | Entered Proximity Caves 12730 | -6/Proximity Caves | Build established: Scavenger-Skirmisher 12937 | -6/Proximity Caves | Learned Factory stockpile data 13179 | -6/Proximity Caves | Core integrity fell below 50% 13464 | -6/Proximity Caves | Discovered exit to Factory (range 11) 13958 | -6/Proximity Caves | System corruption reached 30% 13984 | -6/Proximity Caves | Entered Factory 13984 | -6/Factory | Evolved 2 slots: Weapon x2 13985 | -6/Factory | Identified exit to Lower Caves 13985 | -6/Factory | Identified exit to Extension 13986 | -6/Factory | Identified exit to Factory 13988 | -6/Factory | Loaded intel: 291 machine locations 13989 | -6/Factory | Loaded intel: 28 terminal locations 14292 | -6/Factory | Found Launcher Loader 14505 | -6/Factory | Entered Lower Caves 14590 | -6/Lower Caves | Encountered a Warlord checkpoint 16732 | -6/Lower Caves | Discovered new exit (range 6) 16738 | -6/Lower Caves | Identified exit to Lower Caves 17003 | -6/Lower Caves | Entered another Lower Caves area 17005 | -6/Lower Caves | Attracted the attention of an 0b10 checkpoint 17052 | -6/Lower Caves | Lost 3 parts (1p1u1w) 17359 | -6/Lower Caves | Learned 8 Factory zone layouts 17377 | -6/Lower Caves | Encountered a Warlord checkpoint 17778 | -6/Lower Caves | Discovered exit to Factory (range 15) 18707 | -6/Lower Caves | Discovered new exit (range 10) 18723 | -6/Lower Caves | Identified exit to Zion 18747 | -6/Lower Caves | Found Prototype Device 18756 | -6/Lower Caves | Identified Heart of Steel 20791 | -6/Lower Caves | Entered Zion 20877 | -6/Zion | System corruption cleaned by Quarantine Array 20927 | -6/Zion | Discovered new exit (range 9) 21442 | -6/Zion | Learned Factory stockpile data 21501 | -6/Zion | Heart of Steel transformed into Warbot 21638 | -6/Zion | Given the Hacking Drone Bay 21639 | -6/Zion | Found Prototype Device 21793 | -6/Zion | Found Prototype Device 22154 | -6/Zion | Met Imprinter 22386 | -6/Zion | Found CR-A16's Pointy Stick 22813 | -6/Zion | Build established: Scavenger-Gunner 23002 | -6/Zion | Discovered new exit (range 3) 23002 | -6/Zion | Saw the warning signs outside the Deep Caves entrance 23022 | -6/Zion | Entered Deep Caves 23022 | -6/Deep Caves | Accompanied by 1 ally (Warbot) 23568 | -6/Deep Caves | Attacked by Z-Imprinter 23582 | -6/Deep Caves | Allies destroyed Z-Imprinter 23617 | -6/Deep Caves | Lost 4 parts (1p3u) 23915 | -6/Deep Caves | Z-Facility disabled 24467 | -6/Deep Caves | Found Prototype Protection 24467 | -6/Deep Caves | Identified Zio. Heavy Carapace 24521 | -6/Deep Caves | Found Prototype Protection 24522 | -6/Deep Caves | Identified Zio. Weapon Casing 25149 | -6/Deep Caves | Discovered new exit (range 6) 25582 | -6/Deep Caves | Murdered Warbot 25605 | -6/Deep Caves | Found Zio. Weapon Casing 25622 | -6/Deep Caves | Found Zio. Weapon Casing 25895 | -6/Deep Caves | Found Zio. Weapon Casing 25961 | -6/Deep Caves | Build established: Scavenger-Tank 26170 | -6/Deep Caves | Found Zio. Weapon Casing 26227 | -6/Deep Caves | Found Zio. Weapon Casing 26232 | -6/Deep Caves | Found Zio. Weapon Casing 26853 | -6/Deep Caves | Spotted AG-48636 26888 | -6/Deep Caves | Destroyed AG-48636 26918 | -6/Deep Caves | Lost 3 parts (1n2u) 27088 | -6/Deep Caves | Spotted AG-74025 27175 | -6/Deep Caves | Destroyed AG-74025 27192 | -6/Deep Caves | Found GOLEM Unit 28064 | -6/Deep Caves | Identified Phasing AFG 28107 | -6/Deep Caves | Found Firepult 28113 | -6/Deep Caves | Triggered Deep Caves wall 28113 | -6/Deep Caves | Spotted AS-07340 28113 | -6/Deep Caves | Spotted AS-00619 28124 | -6/Deep Caves | Exposed GOLEM chamber 28137 | -6/Deep Caves | Destroyed AS-07340 28157 | -6/Deep Caves | Destroyed AS-00619 28270 | -6/Deep Caves | Found GOLEM Unit 28275 | -6/Deep Caves | Destroyed 46 combat bots 28306 | -6/Deep Caves | Found GOLEM Unit 28312 | -6/Deep Caves | Found GOLEM Unit 28318 | -6/Deep Caves | Found GOLEM Unit 28716 | -6/Deep Caves | Build established: Scavenger-Golem 29046 | -6/Deep Caves | Build established: Golem 29437 | -6/Deep Caves | Entered Proximity Caves 29570 | -5/Proximity Caves | Found Alien Artifact 30882 | -5/Proximity Caves | Discovered exit to Factory (range 9) 33125 | -5/Proximity Caves | Entered Factory 33125 | -5/Factory | Evolved 2 slots: Utility x2 33126 | -5/Factory | Identified exit to Upper Caves 33126 | -5/Factory | Identified exit to Factory 33128 | -5/Factory | Loaded intel: 303 machine locations 33488 | -5/Factory | Identified Dimensional Node Initializer 33520 | -5/Factory | Identified Hacking Drone Bay 33930 | -5/Factory | Spotted B-75 Beast 33980 | -5/Factory | Destroyed B-75 Beast 34153 | -5/Factory | Found Active Sensor Suite 34167 | -5/Factory | Lost 3 parts (3u) 34848 | -5/Factory | Fabricated Combat Drone Bay (x1) 34969 | -5/Factory | Intercept squad dispatched 34977 | -5/Factory | Spotted Tracker 34980 | -5/Factory | Destroyed Tracker 35000 | -5/Factory | Entered Upper Caves 35525 | -5/Upper Caves | Found DCF Scrap (11 items) 35752 | -5/Upper Caves | Learned location of 1 exit from Research 35752 | -5/Upper Caves | Learned Extension garrison access intel 35886 | -5/Upper Caves | Learned Factory terminal intel 38456 | -5/Upper Caves | Spotted B-75 Beast 38459 | -5/Upper Caves | Destroyed B-75 Beast 38865 | -5/Upper Caves | Discovered new exit (range 16) 38901 | -5/Upper Caves | Identified exit to Upper Caves 39924 | -5/Upper Caves | Entered another Upper Caves area 39964 | -5/Upper Caves | Encountered a Warlord checkpoint 39972 | -5/Upper Caves | Discovered exit to Factory (range 6) 41855 | -5/Upper Caves | Attracted the attention of an 0b10 checkpoint 42579 | -5/Upper Caves | Discovered new exit (range 6) 42591 | -5/Upper Caves | Identified exit to Zhirov 43398 | -5/Upper Caves | Entered Zhirov 43398 | -5/Zhirov | Discovered new exit (range 4) 43442 | -5/Zhirov | Met Zhirov 43526 | -5/Zhirov | Zhirov requested help retrieving the SGEMP Prototype 43562 | -5/Zhirov | Found Alien Artifact 43563 | -5/Zhirov | Identified Integrated Dissipator 43563 | -5/Zhirov | Installed Integrated Dissipator, increased core heat dissipation (+20) 43595 | -5/Zhirov | Found Alien Artifact 43877 | -5/Zhirov | Identified exit to Proximity Caves 43879 | -5/Zhirov | Entered Proximity Caves 44030 | -4/Proximity Caves | Received a Behemoth hack from an annoying Tinkerer 44606 | -4/Proximity Caves | Ambushed by research squad 44830 | -4/Proximity Caves | Learned Research terminal intel 45782 | -4/Proximity Caves | Discovered exit to Factory (range 9) 48054 | -4/Proximity Caves | Build established: Tank 48113 | -4/Proximity Caves | Entered Factory 48113 | -4/Factory | Evolved 2 slots: Propulsion x2 48114 | -4/Factory | Loaded intel: 305 machine locations 48115 | -4/Factory | Loaded intel: 26 terminal locations 48127 | -4/Factory | Identified exit to Research 48133 | -4/Factory | Identified exit to Upper Caves 48441 | -4/Factory | Build established: Skirmisher 49221 | -4/Factory | Found Hvy. Reflective Plating 49280 | -4/Factory | Build established: Tank 50283 | -4/Factory | Intercept squad dispatched 50308 | -4/Factory | Spotted Tracker 50316 | -4/Factory | Destroyed Tracker 50344 | -4/Factory | Entered Upper Caves 50486 | -4/Upper Caves | Attracted the attention of an 0b10 checkpoint 50727 | -4/Upper Caves | Build established: Skirmisher 51531 | -4/Upper Caves | Discovered new exit (range 8) 51533 | -4/Upper Caves | Learned Research stockpile data 52667 | -4/Upper Caves | Identified exit to Upper Caves 52753 | -4/Upper Caves | Build established: Golem 52898 | -4/Upper Caves | Entered another Upper Caves area 52899 | -4/Upper Caves | Encountered a Warlord checkpoint 53129 | -4/Upper Caves | Discovered exit to Research (range 12) 53398 | -4/Upper Caves | Attracted the attention of an 0b10 checkpoint 53617 | -4/Upper Caves | Attacked by a delusional Derelict stockpiling Unaware 53899 | -4/Upper Caves | Spotted B-86 Titan 53905 | -4/Upper Caves | Destroyed B-86 Titan 53940 | -4/Upper Caves | Discovered new exit (range 6) 54949 | -4/Upper Caves | Entered Warlord 54949 | -4/Warlord | Accompanied by 3 allies 55011 | -4/Warlord | System corruption cleaned by Quarantine Array 55647 | -4/Warlord | Visited the Vortex Lab 55658 | -4/Warlord | Warlord's base attacked by MAIN.C 55662 | -4/Warlord | Found Prototype Energy Gun 55663 | -4/Warlord | Identified Vortex Shotgun 55668 | -4/Warlord | Found Vortex Shotgun 55672 | -4/Warlord | Found Prototype Piercing Weapon 55673 | -4/Warlord | Identified Vortex Lance 55677 | -4/Warlord | Found Vortex Lance 55978 | -4/Warlord | Met Warlord 56008 | -4/Warlord | Warlord forces counterattacked 56118 | -4/Warlord | Opened Warlord's prototype stash 56127 | -4/Warlord | Found Spectral Analyzer 56137 | -4/Warlord | Found Exp. Cloaking Device 56146 | -4/Warlord | Found Vortex Chain Reactor 56174 | -4/Warlord | Build established: Commander-Golem 56299 | -4/Warlord | Spotted Striker 56311 | -4/Warlord | Destroyed Striker 56330 | -4/Warlord | Spotted Striker 56333 | -4/Warlord | Warlord base infiltrated, sounded retreat 56354 | -4/Warlord | Allies destroyed Striker 56358 | -4/Warlord | Spotted B-90 Cyclops 56370 | -4/Warlord | Spotted Striker 56383 | -4/Warlord | Spotted B-86 Titan 56418 | -4/Warlord | Allies destroyed B-86 Titan 56423 | -4/Warlord | Found Corrupted Prototype Launcher 56423 | -4/Warlord | Identified Chain Missile Launcher 56459 | -4/Warlord | Spotted Striker 56463 | -4/Warlord | Allies destroyed Striker 56486 | -4/Warlord | Destroyed 12 combat bots 56535 | -4/Warlord | Discovered new exit (range 14) 56559 | -4/Warlord | Entered Proximity Caves 56559 | -3/Proximity Caves | Accompanied by 2 allies 56686 | -3/Proximity Caves | Spotter reported a threat 56847 | -3/Proximity Caves | Spotter reported a threat 56867 | -3/Proximity Caves | Build established: Golem 56979 | -3/Proximity Caves | Spotted B-86 Titan 57882 | -3/Proximity Caves | Attracted the attention of an 0b10 checkpoint 58332 | -3/Proximity Caves | Discovered exit to Research (range 14) 59324 | -3/Proximity Caves | Entered Research 59324 | -3/Research | Evolved 2 slots: Weapon x2 59325 | -3/Research | Identified exit to Armory 59326 | -3/Research | Identified exit to Quarantine 59328 | -3/Research | Loaded intel: 128 machine locations 59329 | -3/Research | Loaded intel: 23 terminal locations 60065 | -3/Research | Intercept squad dispatched 60084 | -3/Research | Spotted Tracker 60085 | -3/Research | Spotted Tracker 60090 | -3/Research | Spotted Combat Programmer 60094 | -3/Research | Destroyed Tracker 60103 | -3/Research | Destroyed Tracker 60108 | -3/Research | Spotted Combat Programmer 60114 | -3/Research | Destroyed Combat Programmer 60117 | -3/Research | System corruption reached 10% 60121 | -3/Research | Destroyed Combat Programmer 60125 | -3/Research | Found Exp. Targeting Computer 60136 | -3/Research | Found Exp. Targeting Computer 60152 | -3/Research | Found Exp. Phase Shifter 60159 | -3/Research | Discovered exit to Quarantine (range 19) 60267 | -3/Research | Found Exp. Focal Shield 60304 | -3/Research | Entered Quarantine 60305 | -3/Quarantine | Loaded intel: 57 machine locations 60403 | -3/Quarantine | Build established: Gunner 60426 | -3/Quarantine | Found Alien Artifact 60640 | -3/Quarantine | Found Alien Reactor 60787 | -3/Quarantine | Build established: Executioner 60846 | -3/Quarantine | Found Alien Artifact 60972 | -3/Quarantine | Scanned by Researcher 61010 | -3/Quarantine | Intercept squad dispatched 61020 | -3/Quarantine | Spotted Tracker 61024 | -3/Quarantine | Destroyed Tracker 61045 | -3/Quarantine | Spotted Combat Programmer 61049 | -3/Quarantine | Destroyed Combat Programmer 61054 | -3/Quarantine | First assault squad dispatched 61057 | -3/Quarantine | Found Exp. Phase Shifter 61176 | -3/Quarantine | Found Alien Impact Weapon 61303 | -3/Quarantine | Destroyed 11 combat bots 61427 | -3/Quarantine | Discovered new exit (range 9) 61447 | -3/Quarantine | Entered Research 61447 | -2/Research | Warlord forces began assault on 0b10 61447 | -2/Research | Evolved 2 slots: Power x1, Utility x1 61448 | -2/Research | Loaded intel: 108 machine locations 61449 | -2/Research | Loaded intel: 19 terminal locations 61471 | -2/Research | Identified Matter Drive 61557 | -2/Research | Research machine network offline 61678 | -2/Research | Discovered new exit (range 17) 61937 | -2/Research | Borebot progress halted 62015 | -2/Research | Borebot progress halted 62065 | -2/Research | Found Enh. Gamma Bomb Array 62082 | -2/Research | Borebot progress halted 62225 | -2/Research | Met up with Warlord 62254 | -2/Research | Identified exit to Testing 62306 | -2/Research | Spotted Striker 62630 | -2/Research | Spotted Striker 62631 | -2/Research | Spotted Executioner 62637 | -2/Research | Destroyed Striker 62740 | -2/Research | Spotted Executioner 62746 | -2/Research | Spotted Executioner 62809 | -2/Research | Met DD-05H 62834 | -2/Research | Warlord destroyed during the assault 62895 | -2/Research | Spotted Striker 63020 | -2/Research | Entered Testing 63021 | -2/Testing | Loaded intel: 71 machine locations 63196 | -2/Testing | Fabricated Imp. Weapon Shielding (x2) 63369 | -2/Testing | Found Exp. Transmission Jammer 63410 | -2/Testing | Fabricated Enh. Armored Heavy Treads? 63410 | -2/Testing | Found Prototype Ballistic Cannon 63410 | -2/Testing | Identified Perforator 63504 | -2/Testing | Found Prototype Energy Cannon 63504 | -2/Testing | Identified Null Cannon 63542 | -2/Testing | Found Prototype Leg 63542 | -2/Testing | Identified Myomer Exoskeleton 63588 | -2/Testing | Destroyed 7 combat bots 63590 | -2/Testing | Build established: Infiltrator-Executioner 63706 | -2/Testing | Found Prototype Launcher 63708 | -2/Testing | Identified Z-bomb Delivery System 63739 | -2/Testing | Found Prototype Energy Cannon 63907 | -2/Testing | Identified Hpw. Disruptor Cannon 63918 | -2/Testing | Spotted Fortress 64052 | -2/Testing | Discovered new exit (range 5) 64052 | -2/Testing | Discovered new exit (range 6) 64284 | -2/Testing | Intercept squad dispatched 64308 | -2/Testing | Spotted Tracker 64309 | -2/Testing | Spotted Tracker 64309 | -2/Testing | Destroyed Tracker 64313 | -2/Testing | Destroyed Tracker 64324 | -2/Testing | Entered Protoforge 64325 | -2/Protoforge | Loaded intel: 435 machine locations 64379 | -2/Protoforge | Spotted Hotshot 64379 | -2/Protoforge | Spotted Hotshot 64379 | -2/Protoforge | Spotted Hotshot 64379 | -2/Protoforge | Spotted Hotshot 64379 | -2/Protoforge | Spotted Hotshot 64422 | -2/Protoforge | Superfortress began startup sequence 64448 | -2/Protoforge | Build established: Scavenger-Executioner 64480 | -2/Protoforge | Destroyed 8 combat bots 64513 | -2/Protoforge | Discovered new exit (range 16) 64533 | -2/Protoforge | Initialized slip node 64687 | -2/Protoforge | Identified Terrabomb 64687 | -2/Protoforge | Used Terrabomb 64687 | -2/Protoforge | Additional patrols dispatched to research labs 64705 | -2/Protoforge | Spotted Immortal 64706 | -2/Protoforge | Spotted Immortal 64709 | -2/Protoforge | Spotted Immortal 64755 | -2/Protoforge | Spotted Immortal 64788 | -2/Protoforge | Destroyed Immortal 64794 | -2/Protoforge | Destroyed Immortal 64801 | -2/Protoforge | Destroyed Immortal 64813 | -2/Protoforge | Found Prototype Piercing Weapon 64813 | -2/Protoforge | Identified Exp. Jetlance 64825 | -2/Protoforge | Found Prototype Device 64826 | -2/Protoforge | Identified Cep. Antimissile System 64830 | -2/Protoforge | Lost 4 parts (1p3w) 64830 | -2/Protoforge | Found Exp. Cloaking Device 64837 | -2/Protoforge | Spotted Immortal 64854 | -2/Protoforge | Found Exp. Jetlance 64867 | -2/Protoforge | Destroyed Immortal 64869 | -2/Protoforge | Spotted Hotshot 64870 | -2/Protoforge | Destroyed Hotshot 64872 | -2/Protoforge | Spotted Hotshot 64872 | -2/Protoforge | Spotted Hotshot 64873 | -2/Protoforge | Destroyed Immortal 64873 | -2/Protoforge | Destroyed Hotshot 64876 | -2/Protoforge | Destroyed Hotshot 64884 | -2/Protoforge | Spotted Hotshot 64891 | -2/Protoforge | Found Prototype Storage 64898 | -2/Protoforge | Identified Cep. NT7 Matterbank 64904 | -2/Protoforge | Found Prototype Storage 64907 | -2/Protoforge | Found Prototype Storage 64913 | -2/Protoforge | Identified Cep. Chromion Battery (x2) 64913 | -2/Protoforge | Found Prototype Storage 64916 | -2/Protoforge | Destroyed Hotshot 64921 | -2/Protoforge | Identified Cep. Antigrav Storage Unit 64924 | -2/Protoforge | Found Cep. Antigrav Storage Unit 64929 | -2/Protoforge | Found Cep. NT7 Matterbank 64932 | -2/Protoforge | Found Cep. NT7 Matterbank 64936 | -2/Protoforge | Found Prototype Device 64944 | -2/Protoforge | Found Cep. NT7 Matterbank 64949 | -2/Protoforge | Identified Cep. Matter Streamer 64958 | -2/Protoforge | Found Faulty Cep. Matter Streamer 65005 | -2/Protoforge | Intercept squad dispatched 65048 | -2/Protoforge | Spotted Tracker 65048 | -2/Protoforge | Spotted Tracker 65052 | -2/Protoforge | Destroyed Tracker 65052 | -2/Protoforge | Destroyed Tracker 65055 | -2/Protoforge | Found Exp. Phase Shifter 65055 | -2/Protoforge | Spotted Combat Programmer 65065 | -2/Protoforge | Destroyed Combat Programmer 65077 | -2/Protoforge | Spotted Decapitator 65077 | -2/Protoforge | Spotted Decapitator 65077 | -2/Protoforge | Spotted Decapitator 65077 | -2/Protoforge | Spotted Decapitator 65079 | -2/Protoforge | Destroyed Decapitator 65080 | -2/Protoforge | Destroyed Decapitator 65082 | -2/Protoforge | Destroyed Decapitator 65088 | -2/Protoforge | Destroyed Decapitator 65103 | -2/Protoforge | Found Prototype Device 65104 | -2/Protoforge | Identified Crosscalibrator 65109 | -2/Protoforge | Destroyed 7 combat bots 65116 | -2/Protoforge | Spotted Combat Programmer 65130 | -2/Protoforge | Identified Transdimensional Reconstructor 65132 | -2/Protoforge | Garrison activated, responded to threat 65133 | -2/Protoforge | Destroyed Combat Programmer 65194 | -2/Protoforge | Forge Plexus network access discovered 65276 | -2/Protoforge | Found Cep. Rapid Grenade Launcher 65398 | -2/Protoforge | Spotted V994-r 65399 | -2/Protoforge | Found Exp. Active Sensor Suite 65490 | -2/Protoforge | Destroyed 11 combat bots 65535 | -2/Protoforge | Spotted V865-t 65535 | -2/Protoforge | Spotted V067-w 65537 | -2/Protoforge | Spotted Decapitator 65552 | -2/Protoforge | Destroyed V865-t 65578 | -2/Protoforge | Found Cep. NT7 Matterbank 65583 | -2/Protoforge | Found Exp. Kinecellerator 65605 | -2/Protoforge | Found Cep. Miniperforator 65610 | -2/Protoforge | Found Faulty Cep. Lightning Penetrator 65613 | -2/Protoforge | Found Cep. Helical Railcannon 65616 | -2/Protoforge | Found Faulty Cep. Plasma Driver 65621 | -2/Protoforge | Found Faulty Cep. XC Strikerail 65645 | -2/Protoforge | Found Cep. Miniperforator 65650 | -2/Protoforge | Found Cep. XC Strikerail 65655 | -2/Protoforge | Found Cep. Helical Railcannon 65664 | -2/Protoforge | Found Faulty Cep. XC Strikerail 65672 | -2/Protoforge | Found Cep. XC Strikerail 65675 | -2/Protoforge | Found Faulty Cep. Helical Railcannon 65812 | -2/Protoforge | Spotted V207-f 65821 | -2/Protoforge | Destroyed V207-f 65842 | -2/Protoforge | Found Cep. Matter Streamer 65862 | -2/Protoforge | Spotted V794-q 65862 | -2/Protoforge | Spotted V125-h 65913 | -2/Protoforge | Destroyed V125-h 65917 | -2/Protoforge | Destroyed V794-q 65929 | -2/Protoforge | Spotted V755-m 65935 | -2/Protoforge | Destroyed V755-m 66007 | -2/Protoforge | Found Cep. Matter Streamer 66049 | -2/Protoforge | Found Cep. Countertargeting System 66054 | -2/Protoforge | Found Adv. Powered Armor 66069 | -2/Protoforge | Found Exp. Armor Integrity Analyzer 66125 | -2/Protoforge | Spotted Decapitator 66125 | -2/Protoforge | Spotted Decapitator 66131 | -2/Protoforge | Destroyed Decapitator 66134 | -2/Protoforge | Destroyed Decapitator 66176 | -2/Protoforge | Found Exp. Kinecellerator 66180 | -2/Protoforge | Found Cep. Recoil Nullifier 66183 | -2/Protoforge | Found Cep. Weapon Articulator 66219 | -2/Protoforge | Found Cep. Countertargeting System 66227 | -2/Protoforge | Found Cep. Hypertargeting System 66234 | -2/Protoforge | Found Cep. Hypertargeting System 66266 | -2/Protoforge | Intercept squad dispatched 66301 | -2/Protoforge | Spotted Tracker 66302 | -2/Protoforge | Destroyed Tracker 66302 | -2/Protoforge | Spotted Tracker 66303 | -2/Protoforge | Spotted Tracker 66305 | -2/Protoforge | Destroyed Tracker 66309 | -2/Protoforge | Destroyed Tracker 66324 | -2/Protoforge | First assault squad dispatched 66331 | -2/Protoforge | Found Exp. Phase Shifter 66384 | -2/Protoforge | Spotted Combat Programmer 66385 | -2/Protoforge | Destroyed Combat Programmer 66385 | -2/Protoforge | Spotted Combat Programmer 66386 | -2/Protoforge | Spotted Combat Programmer 66388 | -2/Protoforge | Destroyed Combat Programmer 66395 | -2/Protoforge | Destroyed Combat Programmer 66403 | -2/Protoforge | Spotted V358-r 66403 | -2/Protoforge | Spotted V845-c 66409 | -2/Protoforge | Spotted Immortal 66414 | -2/Protoforge | Spotted Immortal 66427 | -2/Protoforge | Destroyed Immortal 66438 | -2/Protoforge | Destroyed Immortal 66462 | -2/Protoforge | Spotted V127-o 66466 | -2/Protoforge | Destroyed V127-o 66480 | -2/Protoforge | Found Exp. Remote Shield 66498 | -2/Protoforge | Spotted V961-r 66506 | -2/Protoforge | Destroyed V358-r 66509 | -2/Protoforge | Destroyed V961-r 66512 | -2/Protoforge | Destroyed V845-c 66686 | -2/Protoforge | System corruption reached 10% 66757 | -2/Protoforge | Found Cep. Zero-point Core 66861 | -2/Protoforge | Spotted AP7-3 66862 | -2/Protoforge | Spotted AP7-3 66879 | -2/Protoforge | Destroyed AP7-3 66886 | -2/Protoforge | Destroyed AP7-3 66935 | -2/Protoforge | Destroyed 7 combat bots 66971 | -2/Protoforge | Identified Subatomic Replicator 66971 | -2/Protoforge | Used Subatomic Replicator to replicate Faulty Cep. Thermoelectric Network 66974 | -2/Protoforge | Found Faulty Cep. Thermoelectric Network 66983 | -2/Protoforge | Found Cep. Cloak Mesh 66990 | -2/Protoforge | Found Cep. Core Analysis Suite 67142 | -2/Protoforge | Build established: Executioner 67163 | -2/Protoforge | Destroyed 14 combat bots 67306 | -2/Protoforge | Found Exp. Kinecellerator 67323 | -2/Protoforge | Found Cep. Weapon Articulator 67518 | -2/Protoforge | Lost 3 parts (3u) 67587 | -2/Protoforge | High security lockdown imminent 67587 | -2/Protoforge | Destroyed Superfortress 67609 | -2/Protoforge | Spotted Hotshot 67616 | -2/Protoforge | Spotted Hotshot 67617 | -2/Protoforge | Spotted Hotshot 67618 | -2/Protoforge | Found Cep. Helical Railcannon 67620 | -2/Protoforge | Spotted Hotshot 67625 | -2/Protoforge | Found Cep. Antimissile System 67629 | -2/Protoforge | Found Exp. Force Field 67667 | -2/Protoforge | High security lockdown engaged 67674 | -2/Protoforge | Found Faulty Cep. XC Strikerail 67677 | -2/Protoforge | Found Faulty Cep. XC Strikerail 67681 | -2/Protoforge | Found Faulty Cep. XC Strikerail 67684 | -2/Protoforge | Found Faulty Cep. XC Strikerail 67844 | -2/Protoforge | Build established: Scavenger-Executioner 67979 | -2/Protoforge | Found Transdimensional Reconstructor 67990 | -2/Protoforge | Found Cep. Navigation Harness 68053 | -2/Protoforge | Warped through subspace to slip node 68066 | -2/Protoforge | Spotted Decapitator 68066 | -2/Protoforge | Spotted Decapitator 68066 | -2/Protoforge | Spotted Decapitator 68066 | -2/Protoforge | Spotted Decapitator 68069 | -2/Protoforge | Destroyed Decapitator 68069 | -2/Protoforge | Destroyed Decapitator 68070 | -2/Protoforge | Destroyed Decapitator 68073 | -2/Protoforge | Destroyed Decapitator 68104 | -2/Protoforge | Destroyed 11 combat bots 68112 | -2/Protoforge | Entered Access 68112 | -1/Access | Evolved 2 slots: Utility x2 68113 | -1/Access | Loaded intel: 125 machine locations 68280 | -1/Access | High security lockdown imminent 68288 | -1/Access | Found Exp. Shock Absorption System 68301 | -1/Access | Destroyed 7 combat bots 68311 | -1/Access | Spotted Striker 68313 | -1/Access | Spotted Striker 68315 | -1/Access | Destroyed Striker 68360 | -1/Access | High security lockdown engaged 68390 | -1/Access | Spotted B-99 Colossus 68395 | -1/Access | Destroyed B-99 Colossus 68403 | -1/Access | Spotted B-99 Colossus 68408 | -1/Access | Destroyed B-99 Colossus 68490 | -1/Access | Found Hvy. Reflective Plating 68498 | -1/Access | Spotted Executioner 68504 | -1/Access | Discovered new exit (range 4) 68510 | -1/Access | Destroyed 23 combat bots 68539 | -1/Access | Entered Command 68540 | -1/Command | Loaded intel: 77 machine locations 68789 | -1/Command | First assault squad dispatched 69007 | -1/Command | Spotted Executioner 69008 | -1/Command | Spotted Executioner 69012 | -1/Command | Destroyed Executioner 69016 | -1/Command | Destroyed Executioner 69025 | -1/Command | Found Exp. Core Analyzer 69029 | -1/Command | Found Exp. Targeting Computer 69089 | -1/Command | High security lockdown imminent 69138 | -1/Command | Destroyed 14 combat bots 69169 | -1/Command | High security lockdown engaged 69300 | -1/Command | Spotted Striker 69300 | -1/Command | Spotted Striker 69313 | -1/Command | Destroyed Striker 69313 | -1/Command | Destroyed Striker 69334 | -1/Command | Destroyed 8 combat bots 69395 | -1/Command | Spotted Investigator 69400 | -1/Command | Destroyed Investigator 69470 | -1/Command | Destroyed 21 combat bots 69482 | -1/Command | Spotted Executioner 69485 | -1/Command | Spotted Executioner 69486 | -1/Command | Destroyed Executioner 69489 | -1/Command | Destroyed Executioner 69543 | -1/Command | Spotted Executioner 69549 | -1/Command | Spotted Executioner 69552 | -1/Command | Destroyed Executioner 69558 | -1/Command | Destroyed Executioner 69564 | -1/Command | Destroyed Striker 69616 | -1/Command | Destroyed 25 combat bots 69777 | -1/Command | Destroyed Investigator 69867 | -1/Command | Destroyed Executioner 69900 | -1/Command | Destroyed 22 combat bots 69934 | -1/Command | Spotted Striker 69938 | -1/Command | Destroyed Striker 69952 | -1/Command | Spotted Striker 69952 | -1/Command | Destroyed Striker 69986 | -1/Command | Destroyed 10 combat bots 70128 | -1/Command | Spotted Striker 70128 | -1/Command | Spotted Striker 70132 | -1/Command | Spotted Striker 70132 | -1/Command | Spotted Striker 70135 | -1/Command | Destroyed Striker 70139 | -1/Command | Destroyed Striker 70139 | -1/Command | Destroyed Striker 70139 | -1/Command | Spotted Striker 70139 | -1/Command | Spotted Executioner 70145 | -1/Command | Destroyed Striker 70151 | -1/Command | Destroyed Striker 70157 | -1/Command | Destroyed Executioner 70163 | -1/Command | Spotted Executioner 70163 | -1/Command | Spotted Executioner 70173 | -1/Command | Destroyed Executioner 70213 | -1/Command | Destroyed 38 combat bots 70219 | -1/Command | Destroyed Executioner 70292 | -1/Command | Destroyed 7 combat bots 70333 | -1/Command | Spotted Striker 70336 | -1/Command | Destroyed Striker 70448 | -1/Command | Found Unknown Launcher 70448 | -1/Command | Identified Fusion Bomb Launcher 70452 | -1/Command | Found Fusion Bomb Launcher 70457 | -1/Command | Found Fusion Bomb Launcher 70459 | -1/Command | Found Fusion Bomb Launcher 70472 | -1/Command | Found Fusion Bomb Launcher 70476 | -1/Command | Found Fusion Bomb Launcher 70925 | -1/Command | Spotted Striker 70925 | -1/Command | Destroyed Striker 72619 | -1/Command | Found Unknown Device 72619 | -1/Command | Identified Launcher Loader 72950 | -1/Command | Spotted M Guard 72950 | -1/Command | Spotted Combat Programmer 72953 | -1/Command | Spotted M Guard 72975 | -1/Command | Spotted Combat Programmer 72998 | -1/Command | System corruption reached 10% 72999 | -1/Command | Destroyed Combat Programmer 73005 | -1/Command | Destroyed Combat Programmer 73042 | -1/Command | Destroyed M Guard 73044 | -1/Command | Destroyed M Guard 73044 | -1/Command | All MAIN.C guards destroyed 73056 | -1/Command | Found Prototype Device 73057 | -1/Command | Identified AEGIS Remote Shield 73062 | -1/Command | Found Zero-point Reactor 73066 | -1/Command | Found Prototype Launcher 73071 | -1/Command | Found Prototype Protection 73071 | -1/Command | Identified Hvy. Regenerative Plating 73189 | -1/Command | Identified Hellfire Missile Launcher 78770 | -1/Command | Found Exp. Core Analyzer 79170 | -1/Command | Met MAIN.C 79176 | -1/Command | 0b10 Conduit disabled 79217 | -1/Command | Destroyed MAIN.C Shell 79217 | -1/Command | MAIN.C activated Command garrisons 79221 | -1/Command | Destroyed MAIN.C 79237 | -1/Command | Discovered new exit (range 42) 79237 | -1/Command | Discovered new exit (range 118) 79237 | -1/Command | Extracted map data and part IDs from MAIN.C's data core 79248 | -1/Command | Found Omega Cannon 79278 | -1/Command | Spotted Striker 79280 | -1/Command | Spotted Striker 79286 | -1/Command | Destroyed Striker 79286 | -1/Command | Destroyed Striker 79323 | -1/Command | Spotted B-99 Colossus 79327 | -1/Command | Destroyed B-99 Colossus 80630 | -1/Command | Build established: Scavenger-Mutant 81219 | -1/Command | Found Unknown Device 81219 | -1/Command | Identified Quantum Capacitor 82935 | -1/Command | Found Imp. Powered Armor 83109 | -1/Command | Found Zero-point Reactor 83128 | -1/Command | Found Exp. Powered Armor 83338 | -1/Command | Build established: Scavenger-Executioner 84117 | -1/Command | Found Exp. Targeting Computer 84274 | -1/Command | Found Exp. Core Analyzer 84295 | -1/Command | Warped through subspace to slip node 84295 | -1/Command | Discovered new exit (range 5) 84303 | -1/Command | Entered Access_0 84304 | -1/Access_0 | Loaded intel: 54 machine locations 84304 | -1/Access_0 | Met Architect 84305 | -1/Access_0 | Destroyed A8 84310 | -1/Access_0 | Architect warped through subspace 84364 | -1/Access_0 | Architect warped through subspace 84387 | -1/Access_0 | Found Exp. Powered Armor 84410 | -1/Access_0 | Found Exp. Powered Armor 84413 | -1/Access_0 | Architect warped through subspace 84460 | -1/Access_0 | Subspace Access Node disabled 84468 | -1/Access_0 | Architect warped through subspace 84470 | -1/Access_0 | Spotted Enhanced Programmer 84473 | -1/Access_0 | Destroyed Enhanced Programmer 84526 | -1/Access_0 | Architect warped through subspace 84538 | -1/Access_0 | Found Integrity Redistributor 84557 | -1/Access_0 | Spotted Enhanced Programmer 84562 | -1/Access_0 | Destroyed Enhanced Programmer 84591 | -1/Access_0 | Architect warped through subspace 84613 | -1/Access_0 | Lost 3 parts (3w) 84649 | -1/Access_0 | Architect warped through subspace 84691 | -1/Access_0 | Spotted Enhanced Programmer 84711 | -1/Access_0 | Destroyed Enhanced Programmer 84720 | -1/Access_0 | Architect warped through subspace 84763 | -1/Access_0 | Architect warped through subspace 84777 | -1/Access_0 | Spotted Enhanced Programmer 84789 | -1/Access_0 | Destroyed Enhanced Programmer 84807 | -1/Access_0 | Subspace Access Node disabled 84812 | -1/Access_0 | Architect warped through subspace 84815 | -1/Access_0 | A6 warped into view 84825 | -1/Access_0 | Core integrity fell below 50% 84838 | -1/Access_0 | Destroyed A6 84842 | -1/Access_0 | Lost 4 parts (2u2w) 84850 | -1/Access_0 | Spotted Enhanced Programmer 84852 | -1/Access_0 | Spotted Enhanced Programmer 84860 | -1/Access_0 | Destroyed Enhanced Programmer 84864 | -1/Access_0 | System corruption reached 30% 84872 | -1/Access_0 | Architect warped through subspace 84875 | -1/Access_0 | Destroyed Enhanced Programmer 84895 | -1/Access_0 | Lost 5 parts (1n2u2w) 84913 | -1/Access_0 | Architect warped through subspace 84920 | -1/Access_0 | Found Prototype Device 84920 | -1/Access_0 | Identified Desublimator 84939 | -1/Access_0 | Subspace Access Node disabled 84953 | -1/Access_0 | Spotted Enhanced Programmer 84955 | -1/Access_0 | Used Integrity Redistributor, redistributed integrity to core (+206) 84956 | -1/Access_0 | Released all parts (16) 84958 | -1/Access_0 | Spotted Enhanced Programmer 84975 | -1/Access_0 | Core integrity fell below 20% 84993 | -1/Access_0 | Destroyed by Architect with Modified Sigix Sheargun Last Messages --------------- 84959_ Penetrated by Quantum Shear. 84959_ Acquired Enh. Armored Heavy Treads. 84962_ Penetrated by Quantum Shear. 84962_ Acquired Biometal Heavy Treads. 84964_ Enhanced Programmer resets Enhanced Grunt, system corruption cleaned. 84964_ Quantum Shear penetrates Wall. 84964_ Penetrated by Quantum Shear. 84966_ System corrupted: Substantial component data lost. 84978_ Quantum Shear penetrates Wall. 84978_ Biometal Heavy Treads destroyed. 84978_ Enh. Armored Heavy Treads destroyed. 84979_ System corrupted: Cep. Helical Railcannon jammed. 84981_ Railslug penetrates Wall. 84982_ Penetrated by Quantum Shear. 84986_ System corrupted: Component data lost. 84993_ Quantum Shear penetrates Wall. 84993_ Penetrated by Quantum Shear. Map ----- +----------------------------------------------------+ | ?????????????????????????????????????????????????? | | ?????????????????????????????????????????????????? | | ?????????????????????????????????????????????????? | | ?????????????????????????????????????????????????? | | ?????????????????????????????????????????????????? | | ?????????????????????????????????????????????????? | | ?????????????????????????????????????????????????? | | ?????????????????????????????????????????????????? | | ?????????????????????????????????????????????????? | | ?????????????????????????????????????????????????? | | ?????????????????????????????????????????????????? | | ?????????????????????????????????????????????????? | | ?????????????????? ??????????"??"????????????????? | | ???????????????? ??????????""?????????????????? | | ????????????????? ??????????""?????????????????? | | ?????????????????? ????????"??"????????????????? | | ?????????????????? #???????????????????????????? | | ??????????????????? #####??????????????????????? | | ???????????????????? #??????????????????????? | | ????????????????????#g ??????????????????????? | | ??????????????????### ??????????????????????? | | ?????????????????## ??????????????????????? | | ????????????????## #??????????????????????? | | ???????????????## ;??????????????????????? | | ???????????????# ####???????????????????? | | ??????????????????# @## #???????????????????? | | ??????????????????# #???????????????????? | | ??????????????????### ##??????????????????? | | ????????????????????## ##?????????????????? | | ?????????????????????# #; ##????????????????? | | ????????????????????# ### #????????????????? | | ????????????????????# ?# ##???????????????? | | ????????????????????# ?###; ##??????????????? | | ????????????????????## ???#; #??????????????? | | ?????????????????????# ???# #??????????????? | | ????????????????????## ???##; #??????????????? | | ???????????????????## ???## ##?????#####???? | | ?????????????????? ## #????## ##??? | | ?????????????????? #?#### ##?? | | ???????????????????? ## ""##" "#?? | | ???????????????????????## ### "" ### | | ????????????????????????## ### #" | | ?????????????????????????## ?# " " "" | | ??????????????????????????#??### ###" """ | | ??????????????????????????????# ??# ####" ## | | ?????????????????????????????# ?#" ####??####? | | ???????????????????????????? ?####?????????? | | ??????????????????????????? ??????????????? | | ?????????????????????????# ## ?????????????? | | ?????????????????????????# ?# ?????????????? | +----------------------------------------------------+ Best States ------------- Heat Dissipation 115 Coolant Potential 100 Energy Generation 77 Energy Capacity 4000 Matter Stores 765 Matter Capacity 1050 Sight Range 24 Robot Scan Range 20 Terrain Scan Density 110 Jamming Range 22 Cloak Strength 6 Additional Mass Support 20 Base Temperature (-) 200 Corruption Block 14 Armor Coverage 1600 Resistance: KI 30 Resistance: TH 30 Resistance: EX 75 Resistance: EM 15 Resistance: I 15 Resistance: S 15 Resistance: P 15 Core Shielding 30 Propulsion Shielding 66 Utility Shielding 90 Weapon Shielding 100 Point Defense Rating 480 Weapon Cycling 25 Melee Speed Boost 20 Phase Shifting 20 Evasion (%) 70 Targeting Accuracy 50 Target Analysis 12 Core Analysis 8 Armor Integrity Analysis 50 Recoil Reduction 4 Matter Filtering 30 Particle Charging 30 Kinecelleration 66 Trap Extractor Capacity 8 Item Schematics ----------------- Arm. Wheel | -8/Materials | Scanalyzed Plasma Cutter | -8/Materials | Scanalyzed Huge Storage Unit | -8/Materials | Hacked Imp. Weapon Shielding | -8/Materials | Scanalyzed Enh. Autogun | -8/Materials | Scanalyzed Lrg. Storage Unit | -8/Materials | Scanalyzed Adv. EMP Blaster | -8/Materials | Scanalyzed Machine Analyzer | -8/Materials | Scanalyzed Hvy. Missile Launcher | -8/Materials | Scanalyzed Combat Drone Bay | -7/Data Miner | Free Lgt. Regenerative Plating | -7/Data Miner | Free Cld. Cesium-ion Thruster | -7/Data Miner | Free Gravity Neutralizer | -7/Data Miner | Free Imp. Heavy Machine Gun | -7/Data Miner | Free Arm. Medium Treads | -7/Data Miner | Free Imp. Component Analysis Suite | -7/Data Miner | Free Wave Gun | -7/Data Miner | Free Imp. Target Analyzer | -6/Zion | Archive Point Defense System | -6/Zion | Archive Adv. Signal Interpreter | -6/Zion | Archive Imp. Weapon Cycler | -6/Zion | Archive Thermic Laser | -6/Zion | Archive Adv. System Shield | -6/Zion | Archive Phase Cannon | -6/Zion | Archive Hvy. Gauss Cannon | -6/Zion | Archive Adv. Target Analyzer | -6/Zion | Archive Adv. Sensor Array | -6/Zion | Archive Imp. Recalibrator | -6/Zion | Archive Lgt. Angular Momentum Engine | -6/Zion | Archive Imp. Launcher Guidance Computer | -6/Zion | Archive Mni. Drone Bay | -6/Zion | Archive Imp. KE Penetrator | -6/Zion | Archive Assault Drone Bay | -5/Zhirov | Free Exp. Heat Sink | -5/Zhirov | Free Exp. Optical Array | -5/Zhirov | Free Imp. Arc Thrower | -5/Zhirov | Free Exp. Energy Well | -3/Quarantine | Archive Hvy. Proton Missile Launcher | -3/Quarantine | Archive Particle Accelerator | -3/Quarantine | Archive Exp. Hacking Suite | -2/Protoforge | Archive Com. Mass Driver | -2/Protoforge | Archive Imp. Matter Compressor | -2/Protoforge | Archive Exp. Gyrokinetic Inverter | -2/Protoforge | Archive Enh. Force Rifle | -2/Protoforge | Archive Centrium Heavy Armor Plating | -2/Protoforge | Archive Exp. Thermal Defense Suite | -2/Protoforge | Archive Imp. Q-thruster | -2/Protoforge | Archive Proton Burst Cannon | -2/Protoforge | Archive Exp. Matter Compressor | -2/Protoforge | Archive Exp. Transmission Jammer | -2/Protoforge | Archive Cld. Proton Cannon | -2/Protoforge | Archive Electron Diverter | -2/Protoforge | Archive Stealth Drone Bay | -2/Protoforge | Archive Robot Schematics ------------------ G-50 Soldier | -7/Data Miner | Free G-47 Trooper | -7/Data Miner | Free B-48 Gladiator | -7/Data Miner | Free I-36 Angel | -7/Data Miner | Free M-22 Extractor | -7/Data Miner | Free L-41 Fighter | -7/Data Miner | Free Y-54 Guardian | -7/Data Miner | Free A-15 Conveyor | -6/Zion | Archive S-27 Virus | -6/Zion | Archive K-01 Serf | -6/Zion | Archive B-74 Champion | -2/Protoforge | Archive L-61 Swordsman | -2/Protoforge | Archive R-10 Processor | -2/Protoforge | Archive E-15 Imp | -2/Protoforge | Archive Fabricated ------------ Huge Storage Unit | x1 | -7/Factory Combat Drone Bay | x1 | -5/Factory Imp. Weapon Shielding | x2 | -2/Testing Enh. Armored Heavy Treads | x1 | -2/Testing | Preloaded Repaired ---------- Nothing Alien Tech Used ----------------- Integrated Dissipator Matter Drive Dimensional Node Initializer Terrabomb Subatomic Replicator Transdimensional Reconstructor Integrity Redistributor Achievements -------------- Perfect Aim Challenges ------------ None Game ------ Seed ProcessingPlatingShifter Manual? 0 Play Time 12:51:16 Cumulative 670.0 hours Start 2025.06.04 @ 02:29:41 End 2025.06.04 @ 16:37:17 Sessions 3 Manual Loads 0 Difficulty Rogue Special Mode None Game No. 148 Rogue 148 Adventurer 0 Explorer 0 Win Type - Total 40 Types 11/6/7/2/1/1/8/2/1/1 Lore% 69 Gallery% 84 Achievement% 81 Wizard Run 0 Options --------- Layout 1 ASCII 0 Keyboard 0 Movement Mouse Keybinds 0 Fullscreen 2 Font 24/Smallcaps Map View 50x35 Zoom Use 2% Tactical HUD 1 Map Filters NONE Filters NONE Steam 1 RUN: e72b9290-f2d2-4a12-aa91-15abf49cb420